Organisation Name (A),Department (B),Service Cat Label (C ),Purpose of Spend (D),Expenditure CIPFA Sub Group (E),Supplier (F),Supplier Reference (G),Pay Date (H),Transaction Number (I),Net Amount (J),Grant to VCSE? (K),Charity Number (L),Card Transaction (M),Irrecoverable VAT (N)
Pendle Borough Council,Parks & Recreation Services,Transport Related Expense,Tprt : Repairs : General,3105,BALMERS GM LIMITED,A0000198,18/05/2023,PCO0333885,22.2,N,,N,N
Pendle Borough Council,Parks & Recreation Services,Transport Related Expense,Tprt : Repairs : General,3105,BALMERS GM LIMITED,A0000198,04/05/2023,PCO0333521,223.19,N,,N,N
Pendle Borough Council,Financial Services,Capital Costs,Capital : Payments,cd14,BALMERS GM LIMITED,A0000198,18/05/2023,AAS0333930,84335,N,,N,N
Pendle Borough Council,Parks & Recreation Services,Supplies and Services,Expenditure : Materials,0002,BARNES JB LIMITED,A0000202,18/05/2023,PCO0333728,46.53,N,,N,N
Pendle Borough Council,Parks & Recreation Services,Premises Related Expense,Bldgs : R & M : Day To Day,2001,BARNES JB LIMITED,A0000202,18/05/2023,PCO0333729,21.6,N,,N,N
Pendle Borough Council,Operational Services,Premises Related Expense,Bldgs : R & M : Day To Day,2001,BARNES JB LIMITED,A0000202,11/05/2023,OPS0333637,6.96,N,,N,N
Pendle Borough Council,Operational Services,Premises Related Expense,Bldgs : R & M : Day To Day,2001,BARNES JB LIMITED,A0000202,24/05/2023,OPS0334035,8.45,N,,N,N
Pendle Borough Council,Operational Services,Premises Related Expense,Bldgs : R & M : Day To Day,2001,BARNES JB LIMITED,A0000202,11/05/2023,OPS0333637,11,N,,N,N
Pendle Borough Council,Operational Services,Premises Related Expense,Bldgs : R & M : Day To Day,2001,BARNES JB LIMITED,A0000202,24/05/2023,OPS0334035,20.73,N,,N,N
Pendle Borough Council,Parks & Recreation Services,Premises Related Expense,Grounds : R & M : Day to Day : Routine,2101,BARNES JB LIMITED,A0000202,24/05/2023,PCO0334064,32.06,N,,N,N
Pendle Borough Council,Parks & Recreation Services,Transport Related Expense,Tprt : Repairs : General,3105,BARNES JB LIMITED,A0000202,18/05/2023,PCO0333724,18.59,N,,N,N
Pendle Borough Council,Operational Services,Supplies and Services,EFM Materials,4004,BROXAP LIMITED,A0000236,04/05/2023,OPS0333457,59,N,,N,N
Pendle Borough Council,Parks & Recreation Services,Transport Related Expense,Tprt : Repairs : General,3105,BOC GASES LTD,A0000386,18/05/2023,PCO0333027,25.95,N,,N,N
Pendle Borough Council,Parks & Recreation Services,Transport Related Expense,Tprt : Repairs : General,3105,BOC GASES LTD,A0000386,18/05/2023,PCO0333720,25.95,N,,N,N
Pendle Borough Council,Parks & Recreation Services,Transport Related Expense,Hire of Plant,3502,BOC GASES LTD,A0000386,18/05/2023,PCO4006693,-25.95,N,,N,N
Pendle Borough Council,Engineering & Special Projects,,Paid in the Year,PD03,CB EXCAVATORS LTD,A0000396,18/05/2023,HED0333890,9358.25,N,,N,N
Pendle Borough Council,Parks & Recreation Services,Supplies and Services,Expenditure : Materials,0002,BARROWFORD SAFE & LOCK SERV LT,A0000458,18/05/2023,PCO0333725,16.65,N,,N,N
Pendle Borough Council,Parks & Recreation Services,Premises Related Expense,Bldgs : R & M : Day To Day,2001,BARROWFORD SAFE & LOCK SERV LT,A0000458,18/05/2023,PCO0333725,63.27,N,,N,N
Pendle Borough Council,Planning & Building Control,Supplies and Services,Grant Funding,4737,BARNOLDSWICK TOWN COUNCIL,A0000467,04/05/2023,PBC0333526,22080,N,,N,N
Pendle Borough Council,Democratic & Legal Services,Premises Related Expense,Rents,2301,BRIERFIELD TOWN COUNCIL,A0000469,11/05/2023,DAL0333595,300,N,,N,N
Pendle Borough Council,Property Services,Premises Related Expense,Bldgs : R & M : Day To Day,2001,BARROWFORD SAFE & LOCK & BB LOCKSMITHS,A0000510,24/05/2023,EST0334089,271.07,N,,N,N
Pendle Borough Council,Operational Services,Premises Related Expense,Bldgs : R & M : Day To Day,2001,BARROWFORD SAFE & LOCK & BB LOCKSMITHS,A0000510,18/05/2023,OPS0333898,6.66,N,,N,N
Pendle Borough Council,Operational Services,Premises Related Expense,Bldgs : R & M : Day To Day,2001,BARROWFORD SAFE & LOCK & BB LOCKSMITHS,A0000510,18/05/2023,OPS0333898,6.66,N,,N,N
Pendle Borough Council,Financial Services,Indirect Employee Expenses,Training,1211,CIPFA,A0000563,04/05/2023,AAS0333577,3.47,N,,N,N
Pendle Borough Council,Financial Services,Supplies and Services,Seminars etc All Costs,4601,CIPFA,A0000563,11/05/2023,AAS0333713,120,N,,N,N
Pendle Borough Council,Parks & Recreation Services,Transport Related Expense,Hire of Plant,3502,R J CLOUGH & SON LTD,A0000567,18/05/2023,PCO0333869,72.55,N,,N,N
Pendle Borough Council,Operational Services,Transport Related Expense,Tprt : Annual Hire Charge,3601,CRAVEN VEHICLE SERVICES LIMITED,A0000572,11/05/2023,OPS0333630,208.33,N,,N,N
Pendle Borough Council,Operational Services,Transport Related Expense,Tprt : Annual Hire Charge,3601,CRAVEN VEHICLE SERVICES LIMITED,A0000572,11/05/2023,OPS0333631,208.33,N,,N,N
Pendle Borough Council,Engineering & Special Projects,Premises Related Expense,Bldgs : R & M : Abnormal,2002,MARTIN COLLINS JOINERY & GLAZING,A0000623,04/05/2023,HED0333484,32,N,,N,N
Pendle Borough Council,Engineering & Special Projects,Premises Related Expense,Bldgs : R & M : Abnormal,2002,MARTIN COLLINS JOINERY & GLAZING,A0000623,04/05/2023,HED0333483,72,N,,N,N
Pendle Borough Council,Engineering & Special Projects,Premises Related Expense,Bldgs : R & M : Abnormal,2002,MARTIN COLLINS JOINERY & GLAZING,A0000623,11/05/2023,HED0333656,72,N,,N,N
Pendle Borough Council,Operational Services,Supplies and Services,Other Expenses,4705,MARTIN COLLINS JOINERY & GLAZING,A0000623,11/05/2023,OPS0333639,60.5,N,,N,N
Pendle Borough Council,Planning & Building Control,Supplies and Services,Other Expenses,4705,MARTIN COLLINS JOINERY & GLAZING,A0000623,04/05/2023,PBC0333548,109,N,,N,N
Pendle Borough Council,Engineering & Special Projects,Transfer Payments,Storage & Homelessness prevention,6104,CAVALIER TAXIS,A0000638,24/05/2023,HED0333987,157,N,,N,N
Pendle Borough Council,Engineering & Special Projects,Transfer Payments,Storage & Homelessness prevention,6104,CAVALIER TAXIS,A0000638,24/05/2023,HED0333988,160,N,,N,N
Pendle Borough Council,Property Services,Premises Related Expense,Bldgs : R & M : Day To Day,2001,J DRIVER LTD,A0000884,18/05/2023,EST0333918,494.78,N,,N,N
Pendle Borough Council,Property Services,Premises Related Expense,Bldgs : R & M : Day To Day,2001,J DRIVER LTD,A0000884,18/05/2023,EST0333918,165.95,N,,N,N
Pendle Borough Council,Property Services,Premises Related Expense,Bldgs : R & M : Day To Day,2001,J DRIVER LTD,A0000884,18/05/2023,EST0333918,499.87,N,,N,N
Pendle Borough Council,Property Services,Premises Related Expense,Bldgs : R & M : Day To Day,2001,J DRIVER LTD,A0000884,18/05/2023,EST0333918,195.99,N,,N,N
Pendle Borough Council,Property Services,Premises Related Expense,Bldgs : R & M : Day To Day,2001,J DRIVER LTD,A0000884,18/05/2023,EST0333918,84,N,,N,N
Pendle Borough Council,Property Services,Premises Related Expense,Bldgs : R & M : Day To Day,2001,J DRIVER LTD,A0000884,18/05/2023,EST0333918,982.02,N,,N,N
Pendle Borough Council,Property Services,Capital Costs,Capital : Payments,CD14,J DRIVER LTD,A0000884,11/05/2023,EST0333694,10000,N,,N,N
Pendle Borough Council,Property Services,Capital Costs,Capital: Construction: Conversion/Refu,CD57,J DRIVER LTD,A0000884,18/05/2023,EST0333920,18000,N,,N,N
Pendle Borough Council,Parks & Recreation Services,Transport Related Expense,Tprt : Repairs : General,3105,ENGINEERING & FOUNDRY SUPPLIES,A0001002,04/05/2023,PCO0333470,187.2,N,,N,N
Pendle Borough Council,Parks & Recreation Services,Supplies and Services,Protective Clothing,4201,ENGINEERING & FOUNDRY SUPPLIES,A0001002,04/05/2023,PCO0333465,11.18,N,,N,N
Pendle Borough Council,Planning & Building Control,Supplies and Services,Protective Clothing,4201,ENGINEERING & FOUNDRY SUPPLIES,A0001002,24/05/2023,PBC0334098,27.36,N,,N,N
Pendle Borough Council,Planning & Building Control,Supplies and Services,Protective Clothing,4201,ENGINEERING & FOUNDRY SUPPLIES,A0001002,24/05/2023,PBC0334097,98.57,N,,N,N
Pendle Borough Council,Operational Services,Supplies and Services,Other Expenses,4705,ENGINEERING & FOUNDRY SUPPLIES,A0001002,24/05/2023,OPS0334047,22.24,N,,N,N
Pendle Borough Council,Operational Services,Supplies and Services,Other Expenses,4705,ENGINEERING & FOUNDRY SUPPLIES,A0001002,04/05/2023,OPS0333456,48.15,N,,N,N
Pendle Borough Council,Operational Services,,Stock : Purchases,PJ01,ENGINEERING & FOUNDRY SUPPLIES,A0001002,04/05/2023,OPS0333461,11.25,N,,N,N
Pendle Borough Council,Operational Services,,Stock : Purchases,PJ01,ENGINEERING & FOUNDRY SUPPLIES,A0001002,04/05/2023,OPS0333461,30.25,N,,N,N
Pendle Borough Council,Democratic & Legal Services,Premises Related Expense,Rents,2301,EARBY COMMUNITY CENTRE,A0001015,11/05/2023,DAL0333604,50,N,,N,N
Pendle Borough Council,Democratic & Legal Services,Premises Related Expense,Rents,2301,EARBY & KELBROOK SR CITIZEN WELFARE,A0001024,11/05/2023,DAL0333601,200,N,700210,N,N
Pendle Borough Council,Planning & Building Control,Supplies and Services,Grant Funding,4737,EASTLANCS CHAMBER OF COMMERCE,A0001036,04/05/2023,PBC0333535,3833,N,,N,N
Pendle Borough Council,Planning & Building Control,Supplies and Services,Grant Funding,4737,EASTLANCS CHAMBER OF COMMERCE,A0001036,04/05/2023,PBC0333527,18903,N,,N,N
Pendle Borough Council,Planning & Building Control,Supplies and Services,Grant Funding,4737,EASTLANCS CHAMBER OF COMMERCE,A0001036,04/05/2023,PBC0333528,10476,N,,N,N
Pendle Borough Council,Operational Services,Transport Related Expense,Tprt : Repairs : General,3105,FREIGHT TRANSPORT ASSOCIATION,A0001124,24/05/2023,OPS0334033,42,N,,N,N
Pendle Borough Council,Operational Services,Transport Related Expense,Tprt : Repairs : General,3105,FREIGHT TRANSPORT ASSOCIATION,A0001124,11/05/2023,OPS0333650,44,N,,N,N
Pendle Borough Council,Parks & Recreation Services,Premises Related Expense,Bldgs : R & M : Day To Day,2001,LANLEE SUPPLIES LIMITED,A0001672,04/05/2023,PCO0333518,18,N,,N,N
Pendle Borough Council,Parks & Recreation Services,Premises Related Expense,Grounds : R & M : Day to Day : Routine,2101,LANLEE SUPPLIES LIMITED,A0001672,18/05/2023,PCO0333871,42,N,,N,N
Pendle Borough Council,Parks & Recreation Services,Transport Related Expense,Tprt : Repairs : General,3105,DICK LEIGH,A0001675,24/05/2023,PCO0334071,54.5,N,,N,N
Pendle Borough Council,Parks & Recreation Services,Transport Related Expense,Tprt : Repairs : General,3105,DICK LEIGH,A0001675,24/05/2023,PCO0334070,180.23,N,,N,N
Pendle Borough Council,Parks & Recreation Services,Transport Related Expense,Tprt : Repairs : General,3105,DICK LEIGH,A0001675,04/05/2023,PCO0333520,54.5,N,,N,N
Pendle Borough Council,Democratic & Legal Services,Premises Related Expense,Rents,2301,LANCASHIRE COUNTY COUNCIL,A0001690,11/05/2023,DAL0333620,50,N,,N,N
Pendle Borough Council,Engineering & Special Projects,Supplies and Services,Consultants Fees,4401,LANCASHIRE COUNTY COUNCIL,A0001690,24/05/2023,HED0334027,200,N,,N,N
Pendle Borough Council,Financial Services,,Paid in the Year,PD03,LANCASHIRE COUNTY COUNCIL,A0001690,11/05/2023,AAS0333718,11570,N,,N,N
Pendle Borough Council,Financial Services,,Paid in the Year,PD03,LANCASHIRE COUNTY COUNCIL,A0001690,11/05/2023,AAS0333717,6000,N,,N,N
Pendle Borough Council,Financial Services,,Paid in the Year,PD03,LANCASHIRE COUNTY COUNCIL,A0001690,11/05/2023,AAS0333716,12500,N,,N,N
Pendle Borough Council,Financial Services,,Paid in the Year,PD03,LANCASHIRE COUNTY COUNCIL,A0001690,24/05/2023,AAS0334103,80000,N,,N,N
Pendle Borough Council,Engineering & Special Projects,Premises Related Expense,Grounds : R & M : Day to Day : Routine,2101,MONK OF COLNE LTD,A0001828,11/05/2023,HED0333668,232.4,N,,N,N
Pendle Borough Council,Planning & Building Control,Supplies and Services,Grant Funding,4737,MID-PENNINE ARTS,A0001838,04/05/2023,PBC0333530,24000,N,1145521,N,N
Pendle Borough Council,Property Services,Premises Related Expense,Water & Sewerage,2501,WATER PLUS LIMITED,A0001986,11/05/2023,EST0333687,152.74,N,,N,N
Pendle Borough Council,Property Services,Premises Related Expense,Water & Sewerage,2501,WATER PLUS LIMITED,A0001986,11/05/2023,EST0333686,39.42,N,,N,N
Pendle Borough Council,Property Services,Premises Related Expense,Water & Sewerage,2501,WATER PLUS LIMITED,A0001986,04/05/2023,EST0333547,40.21,N,,N,N
Pendle Borough Council,Property Services,Premises Related Expense,Water & Sewerage,2501,WATER PLUS LIMITED,A0001986,04/05/2023,EST0333545,88.77,N,,N,N
Pendle Borough Council,Property Services,Premises Related Expense,Water & Sewerage,2501,WATER PLUS LIMITED,A0001986,24/05/2023,EST0334087,90.86,N,,N,N
Pendle Borough Council,Property Services,Premises Related Expense,Water & Sewerage,2501,WATER PLUS LIMITED,A0001986,24/05/2023,EST0334088,119.59,N,,N,N
Pendle Borough Council,Property Services,Premises Related Expense,Water & Sewerage,2501,WATER PLUS LIMITED,A0001986,11/05/2023,EST0333690,13.48,N,,N,N
Pendle Borough Council,Property Services,Premises Related Expense,Water & Sewerage,2501,WATER PLUS LIMITED,A0001986,11/05/2023,EST0333695,8,N,,N,N
Pendle Borough Council,Property Services,Premises Related Expense,Water & Sewerage,2501,WATER PLUS LIMITED,A0001986,11/05/2023,EST0333689,1.36,N,,N,N
Pendle Borough Council,Property Services,Premises Related Expense,Water & Sewerage,2501,WATER PLUS LIMITED,A0001986,11/05/2023,EST0333688,15.02,N,,N,N
Pendle Borough Council,Property Services,Premises Related Expense,Water & Sewerage,2501,WATER PLUS LIMITED,A0001986,04/05/2023,EST0333544,15.82,N,,N,N
Pendle Borough Council,Property Services,Premises Related Expense,Water & Sewerage,2501,WATER PLUS LIMITED,A0001986,11/05/2023,EST0333691,192.15,N,,N,N
Pendle Borough Council,Parks & Recreation Services,Premises Related Expense,Cleaning Materials,2605,OPTION HYGIENE LIMITED,A0002063,18/05/2023,PCO0333872,36.32,N,,N,N
Pendle Borough Council,Operational Services,Premises Related Expense,Bldgs : R & M : Day To Day,2001,POWER PIPES (PENDLE) LIMITED,A0002089,04/05/2023,OPS0333460,71.7,N,,N,N
Pendle Borough Council,Engineering & Special Projects,Supplies and Services,Postages,4501,ROYAL MAIL GROUP LIMITED,A0002281,24/05/2023,HED0334003,4.2,N,,N,N
Pendle Borough Council,Engineering & Special Projects,Supplies and Services,Postages,4501,ROYAL MAIL GROUP LIMITED,A0002281,11/05/2023,HED0333663,34.78,N,,N,N
Pendle Borough Council,Engineering & Special Projects,Supplies and Services,Postages,4501,ROYAL MAIL GROUP LIMITED,A0002281,18/05/2023,HED0333886,92.55,N,,N,N
Pendle Borough Council,Engineering & Special Projects,Supplies and Services,Postages,4501,ROYAL MAIL GROUP LIMITED,A0002281,24/05/2023,HED0334003,146.16,N,,N,N
Pendle Borough Council,Engineering & Special Projects,Supplies and Services,Postages,4501,ROYAL MAIL GROUP LIMITED,A0002281,11/05/2023,HED0333671,498.78,N,,N,N
Pendle Borough Council,Engineering & Special Projects,Supplies and Services,Postages,4501,ROYAL MAIL GROUP LIMITED,A0002281,11/05/2023,HED0333663,166.17,N,,N,N
Pendle Borough Council,Engineering & Special Projects,Supplies and Services,Postages,4501,ROYAL MAIL GROUP LIMITED,A0002281,24/05/2023,HED0334005,374.6,N,,N,N
Pendle Borough Council,Engineering & Special Projects,Supplies and Services,Postages,4501,ROYAL MAIL GROUP LIMITED,A0002281,11/05/2023,HED0333671,415.17,N,,N,N
Pendle Borough Council,Engineering & Special Projects,Supplies and Services,Postages,4501,ROYAL MAIL GROUP LIMITED,A0002281,24/05/2023,HED0334004,3758.4,N,,N,N
Pendle Borough Council,Engineering & Special Projects,Supplies and Services,Postages,4501,ROYAL MAIL GROUP LIMITED,A0002281,24/05/2023,HED0334006,7643.2,N,,N,N
Pendle Borough Council,Engineering & Special Projects,Supplies and Services,Postages,4501,ROYAL MAIL GROUP LIMITED,A0002281,11/05/2023,HED0333671,2.8,N,,N,N
Pendle Borough Council,Engineering & Special Projects,Supplies and Services,Postages,4501,ROYAL MAIL GROUP LIMITED,A0002281,18/05/2023,HED0333886,10.29,N,,N,N
Pendle Borough Council,Engineering & Special Projects,Supplies and Services,Postages,4501,ROYAL MAIL GROUP LIMITED,A0002281,24/05/2023,HED0334003,17.29,N,,N,N
Pendle Borough Council,Engineering & Special Projects,Supplies and Services,Postages,4501,ROYAL MAIL GROUP LIMITED,A0002281,11/05/2023,HED0333663,110.31,N,,N,N
Pendle Borough Council,Engineering & Special Projects,Supplies and Services,Postages,4501,ROYAL MAIL GROUP LIMITED,A0002281,18/05/2023,HED0333886,4.62,N,,N,N
Pendle Borough Council,Engineering & Special Projects,Supplies and Services,Postages,4501,ROYAL MAIL GROUP LIMITED,A0002281,24/05/2023,HED0334003,5.45,N,,N,N
Pendle Borough Council,Engineering & Special Projects,Supplies and Services,Postages,4501,ROYAL MAIL GROUP LIMITED,A0002281,11/05/2023,HED0333671,5.76,N,,N,N
Pendle Borough Council,Engineering & Special Projects,Supplies and Services,Postages,4501,ROYAL MAIL GROUP LIMITED,A0002281,11/05/2023,HED0333663,6.06,N,,N,N
Pendle Borough Council,Engineering & Special Projects,Supplies and Services,Postages,4501,ROYAL MAIL GROUP LIMITED,A0002281,24/05/2023,HED0334003,2.8,N,,N,N
Pendle Borough Council,Engineering & Special Projects,Supplies and Services,Postages,4501,ROYAL MAIL GROUP LIMITED,A0002281,18/05/2023,HED0333886,5.02,N,,N,N
Pendle Borough Council,Engineering & Special Projects,Supplies and Services,Postages,4501,ROYAL MAIL GROUP LIMITED,A0002281,18/05/2023,HED0333886,2.49,N,,N,N
Pendle Borough Council,Engineering & Special Projects,Supplies and Services,Postages,4501,ROYAL MAIL GROUP LIMITED,A0002281,11/05/2023,HED0333663,3.63,N,,N,N
Pendle Borough Council,Engineering & Special Projects,Supplies and Services,Postages,4501,ROYAL MAIL GROUP LIMITED,A0002281,11/05/2023,HED0333671,4.09,N,,N,N
Pendle Borough Council,Engineering & Special Projects,Supplies and Services,Postages,4501,ROYAL MAIL GROUP LIMITED,A0002281,18/05/2023,HED0333886,7.41,N,,N,N
Pendle Borough Council,Engineering & Special Projects,Supplies and Services,Postages,4501,ROYAL MAIL GROUP LIMITED,A0002281,11/05/2023,HED0333671,7.47,N,,N,N
Pendle Borough Council,Engineering & Special Projects,Supplies and Services,Postages,4501,ROYAL MAIL GROUP LIMITED,A0002281,24/05/2023,HED0334003,14.19,N,,N,N
Pendle Borough Council,Engineering & Special Projects,Supplies and Services,Postages,4501,ROYAL MAIL GROUP LIMITED,A0002281,24/05/2023,HED0334003,23.52,N,,N,N
Pendle Borough Council,Engineering & Special Projects,Supplies and Services,Postages,4501,ROYAL MAIL GROUP LIMITED,A0002281,18/05/2023,HED0333886,45.97,N,,N,N
Pendle Borough Council,Engineering & Special Projects,Supplies and Services,Postages,4501,ROYAL MAIL GROUP LIMITED,A0002281,24/05/2023,HED0334003,54.39,N,,N,N
Pendle Borough Council,Engineering & Special Projects,Supplies and Services,Postages,4501,ROYAL MAIL GROUP LIMITED,A0002281,11/05/2023,HED0333671,57.55,N,,N,N
Pendle Borough Council,Engineering & Special Projects,Supplies and Services,Postages,4501,ROYAL MAIL GROUP LIMITED,A0002281,11/05/2023,HED0333663,60.37,N,,N,N
Pendle Borough Council,Engineering & Special Projects,Supplies and Services,Postages,4501,ROYAL MAIL GROUP LIMITED,A0002281,11/05/2023,HED0333663,49.28,N,,N,N
Pendle Borough Council,Engineering & Special Projects,Supplies and Services,Postages,4501,ROYAL MAIL GROUP LIMITED,A0002281,11/05/2023,HED0333671,92.16,N,,N,N
Pendle Borough Council,Engineering & Special Projects,Supplies and Services,Postages,4501,ROYAL MAIL GROUP LIMITED,A0002281,18/05/2023,HED0333886,98.7,N,,N,N
Pendle Borough Council,Engineering & Special Projects,Supplies and Services,Postages,4501,ROYAL MAIL GROUP LIMITED,A0002281,24/05/2023,HED0334003,127.12,N,,N,N
Pendle Borough Council,Engineering & Special Projects,Supplies and Services,Postages,4501,ROYAL MAIL GROUP LIMITED,A0002281,11/05/2023,HED0333663,2.45,N,,N,N
Pendle Borough Council,Engineering & Special Projects,Supplies and Services,Postages,4501,ROYAL MAIL GROUP LIMITED,A0002281,18/05/2023,HED0333886,3.96,N,,N,N
Pendle Borough Council,Engineering & Special Projects,Supplies and Services,Postages,4501,ROYAL MAIL GROUP LIMITED,A0002281,24/05/2023,HED0334003,10.09,N,,N,N
Pendle Borough Council,Engineering & Special Projects,Supplies and Services,Postages,4501,ROYAL MAIL GROUP LIMITED,A0002281,11/05/2023,HED0333671,13.3,N,,N,N
Pendle Borough Council,Engineering & Special Projects,Supplies and Services,Postages,4501,ROYAL MAIL GROUP LIMITED,A0002281,18/05/2023,HED0333886,2.49,N,,N,N
Pendle Borough Council,Engineering & Special Projects,Supplies and Services,Postages,4501,ROYAL MAIL GROUP LIMITED,A0002281,11/05/2023,HED0333671,4.98,N,,N,N
Pendle Borough Council,Engineering & Special Projects,Supplies and Services,Postages,4501,ROYAL MAIL GROUP LIMITED,A0002281,24/05/2023,HED0334003,19.92,N,,N,N
Pendle Borough Council,Engineering & Special Projects,Supplies and Services,Postages,4501,ROYAL MAIL GROUP LIMITED,A0002281,24/05/2023,HED0334003,70.18,N,,N,N
Pendle Borough Council,Engineering & Special Projects,Supplies and Services,Postages,4501,ROYAL MAIL GROUP LIMITED,A0002281,18/05/2023,HED0333886,70.78,N,,N,N
Pendle Borough Council,Engineering & Special Projects,Supplies and Services,Postages,4501,ROYAL MAIL GROUP LIMITED,A0002281,11/05/2023,HED0333663,96.52,N,,N,N
Pendle Borough Council,Engineering & Special Projects,Supplies and Services,Postages,4501,ROYAL MAIL GROUP LIMITED,A0002281,11/05/2023,HED0333671,108.63,N,,N,N
Pendle Borough Council,Engineering & Special Projects,Supplies and Services,Postages,4501,ROYAL MAIL GROUP LIMITED,A0002281,18/05/2023,HED0333886,-21.06,N,,N,N
Pendle Borough Council,Engineering & Special Projects,Supplies and Services,Postages,4501,ROYAL MAIL GROUP LIMITED,A0002281,18/05/2023,HED0333886,2.1,N,,N,N
Pendle Borough Council,Engineering & Special Projects,Supplies and Services,Postages,4501,ROYAL MAIL GROUP LIMITED,A0002281,24/05/2023,HED0334003,56.59,N,,N,N
Pendle Borough Council,Engineering & Special Projects,Supplies and Services,Postages,4501,ROYAL MAIL GROUP LIMITED,A0002281,11/05/2023,HED0333663,143.41,N,,N,N
Pendle Borough Council,Engineering & Special Projects,Supplies and Services,Postages,4501,ROYAL MAIL GROUP LIMITED,A0002281,11/05/2023,HED0333671,175.3,N,,N,N
Pendle Borough Council,Operational Services,Transport Related Expense,Tprt : Annual Hire Charge,3601,STANLEY BROTHERS (TIPPERS) LTD,A0002422,18/05/2023,OPS0333762,2200,N,,N,N
Pendle Borough Council,Parks & Recreation Services,Transport Related Expense,Tprt : Repairs : General,3105,SPALDINGS (UK) LTD,A0002537,18/05/2023,PCO0333870,93.96,N,,N,N
Pendle Borough Council,Engineering & Special Projects,Capital Costs,Ren Grant : 1996 Act,CH22,CLOSOMAT LIMITED,A0002685,11/05/2023,HED0333670,4647,N,,N,N
Pendle Borough Council,Engineering & Special Projects,Supplies and Services,Other Expenses,4705,THE UNIVERSITY OF SALFORD,A0002696,24/05/2023,HED0334040,1108,N,,N,N
Pendle Borough Council,Engineering & Special Projects,Supplies and Services,Publicity & advertisement,4704,TRISTAR PRINTERS LTD,A0002731,04/05/2023,HED0333496,397,N,,N,N
Pendle Borough Council,Operational Services,Agency Staff,Emp : Agency Wages,1004,DHRB LIMITED T/A DRIVER HIRE (45680),A0003556,18/05/2023,OPS0333860,156.57,N,,N,N
Pendle Borough Council,Operational Services,Agency Staff,Emp : Agency Wages,1004,DHRB LIMITED T/A DRIVER HIRE (45680),A0003556,18/05/2023,OPS0333860,79.49,N,,N,N
Pendle Borough Council,Democratic & Legal Services,Premises Related Expense,Rents,2301,PARK  HIGH SCHOOL,A0005785,11/05/2023,DAL0333613,100,N,,N,N
Pendle Borough Council,Parks & Recreation Services,Transport Related Expense,Tprt : Repairs : General,3105,F G ROWLAND LIMITED,A0006489,04/05/2023,PCO4006705,-1768,N,,N,N
Pendle Borough Council,Parks & Recreation Services,Transport Related Expense,Tprt : Repairs : General,3105,F G ROWLAND LIMITED,A0006489,04/05/2023,PCO0333522,2652,N,,N,N
Pendle Borough Council,Parks & Recreation Services,Transport Related Expense,Tprt : Repairs : General,3105,F G ROWLAND LIMITED,A0006489,24/05/2023,PCO0334074,12.27,N,,N,N
Pendle Borough Council,Parks & Recreation Services,Transport Related Expense,Tprt : Repairs : General,3105,F G ROWLAND LIMITED,A0006489,24/05/2023,PCO0334073,232.56,N,,N,N
Pendle Borough Council,Engineering & Special Projects,Indirect Employee Expenses,Staff Refreshments,1261,PHILIP SANDERSON,A0006611,11/05/2023,HED0333629,26.91,N,,N,N
Pendle Borough Council,Engineering & Special Projects,Supplies and Services,Hospitality,4611,PHILIP SANDERSON,A0006611,11/05/2023,HED0333629,26.91,N,,N,N
Pendle Borough Council,Democratic & Legal Services,Premises Related Expense,Rents,2301,ROUGHLEE VILLAGE CENTRE,A0007478,11/05/2023,DAL0333596,125,N,,N,N
Pendle Borough Council,Engineering & Special Projects,Supplies and Services,Other Expenses,4705,BARNOLDSWICK BRASS BAND,A0008313,24/05/2023,HED0334046,1500,N,,N,N
Pendle Borough Council,Property Services,Indirect Employee Expenses,Staff Refreshments,1261,VENDA VALET (MACHINES) LTD,A0009649,24/05/2023,EST0334077,65,N,,N,N
Pendle Borough Council,Operational Services,Supplies and Services,Other Expenses,4705,POLICE & CRIME COMMISSIONER FOR LANCASHIRE,A0009816,11/05/2023,OPS0333633,978.53,N,,N,N
Pendle Borough Council,Engineering & Special Projects,Supplies and Services,Grant Funding,4737,COLNE OPEN DOOR CENTRE,A0009836,11/05/2023,HED0333672,5000,N,1121144,N,N
Pendle Borough Council,Engineering & Special Projects,Supplies and Services,Printing & Stationery,4301,NLA MEDIA ACCESS LIMITED,A0012340,24/05/2023,HED0334023,1638,N,,N,N
Pendle Borough Council,Financial Services,Premises Related Expense,Gas,2202,PENDLE LEISURE LIMITED,A0012961,24/05/2023,AAS0334106,57.97,N,XR43029,N,N
Pendle Borough Council,Financial Services,Premises Related Expense,Gas,2202,PENDLE LEISURE LIMITED,A0012961,24/05/2023,AAS0334106,1205.05,N,XR43029,N,N
Pendle Borough Council,Financial Services,Premises Related Expense,Electricity,2203,PENDLE LEISURE LIMITED,A0012961,24/05/2023,AAS0334106,517.11,N,XR43029,N,N
Pendle Borough Council,Engineering & Special Projects,Premises Related Expense,Rents,2301,PENDLE LEISURE LIMITED,A0012961,18/05/2023,HED0333877,1000,N,XR43029,N,N
Pendle Borough Council,Democratic & Legal Services,Premises Related Expense,Rents,2301,PENDLE LEISURE LIMITED,A0012961,11/05/2023,DAL0333588,1400,N,XR43029,N,N
Pendle Borough Council,Financial Services,Premises Related Expense,Water & Sewerage,2501,PENDLE LEISURE LIMITED,A0012961,24/05/2023,AAS0334106,12.07,N,XR43029,N,N
Pendle Borough Council,Financial Services,Premises Related Expense,Water & Sewerage,2501,PENDLE LEISURE LIMITED,A0012961,24/05/2023,AAS0334106,134.54,N,XR43029,N,N
Pendle Borough Council,Financial Services,Supplies and Services,Other Expenses,4705,PENDLE LEISURE LIMITED,A0012961,11/05/2023,AAS0333712,174913.9,N,XR43029,N,N
Pendle Borough Council,Engineering & Special Projects,Supplies and Services,Other Expenses,4705,PENDLE LEISURE LIMITED,A0012961,24/05/2023,HED0334029,28000,N,XR43029,N,N
Pendle Borough Council,Engineering & Special Projects,Supplies and Services,Other Expenses,4705,PENDLE LEISURE LIMITED,A0012961,24/05/2023,HED0334028,39771,N,XR43029,N,N
Pendle Borough Council,Engineering & Special Projects,Supplies and Services,Children`s holiday activities,4716,PENDLE LEISURE LIMITED,A0012961,11/05/2023,HED0333635,297.25,N,XR43029,N,N
Pendle Borough Council,Engineering & Special Projects,Supplies and Services,Children`s holiday activities,4716,PENDLE LEISURE LIMITED,A0012961,04/05/2023,HED0333493,664,N,XR43029,N,N
Pendle Borough Council,Operational Services,Supplies and Services,Sub-Contractors,4007,ORCHARD RECYCLING SERVICE,A0015803,11/05/2023,OPS0333628,1986.6,N,,N,N
Pendle Borough Council,Operational Services,Supplies and Services,Sub-Contractors,4007,ORCHARD RECYCLING SERVICE,A0015803,04/05/2023,OPS0333507,2417.8,N,,N,N
Pendle Borough Council,Operational Services,Supplies and Services,Sub-Contractors,4007,ORCHARD RECYCLING SERVICE,A0015803,24/05/2023,OPS0334036,2440.9,N,,N,N
Pendle Borough Council,Operational Services,Supplies and Services,Sub-Contractors,4007,ORCHARD RECYCLING SERVICE,A0015803,18/05/2023,OPS0333760,2471.7,N,,N,N
Pendle Borough Council,Engineering & Special Projects,Capital Costs,Ren Grant : 1996 Act,CH22,STANNAH LIFT SERVICES LTD,A0021089,11/05/2023,HED0333666,3466,N,,N,N
Pendle Borough Council,Engineering & Special Projects,Capital Costs,Ren Grant : 1996 Act,CH22,STANNAH LIFT SERVICES LTD,A0021089,11/05/2023,HED0333665,3974,N,,N,N
Pendle Borough Council,Engineering & Special Projects,Capital Costs,Ren Grant : 1996 Act,CH22,STANNAH LIFT SERVICES LTD,A0021089,24/05/2023,HED0334025,7010,N,,N,N
Pendle Borough Council,Operational Services,Supplies and Services,Sub-Contractors,4007,ASPEN VALLEY KENNELS & CATTERY,A0022106,11/05/2023,OPS0333652,758,N,,N,N
Pendle Borough Council,Operational Services,Supplies and Services,Other Expenses,4705,ASPEN VALLEY KENNELS & CATTERY,A0022106,11/05/2023,OPS0333652,847.6,N,,N,N
Pendle Borough Council,Democratic & Legal Services,Premises Related Expense,Rents,2301,BARLEY VILLAGE HALL,A0023198,11/05/2023,DAL0333602,80,N,521016,N,N
Pendle Borough Council,Engineering & Special Projects,Supplies and Services,Other Expenses,4705,GRADKO INTERNATIONAL LTD,A0025806,11/05/2023,HED0333655,201.6,N,,N,N
Pendle Borough Council,Engineering & Special Projects,Capital Costs,Capital : Payments,CD14,LITE,A0040032,18/05/2023,HED0333889,4210,N,,N,N
Pendle Borough Council,Engineering & Special Projects,Supplies and Services,EFM : Photocopiers,4001,CANON (UK) LIMITED,A0040400,24/05/2023,HED0334010,93.5,N,,N,N
Pendle Borough Council,Engineering & Special Projects,Supplies and Services,EFM : Photocopiers,4001,CANON (UK) LIMITED,A0040400,24/05/2023,HED0334010,0.45,N,,N,N
Pendle Borough Council,Engineering & Special Projects,Supplies and Services,EFM : Photocopiers,4001,CANON (UK) LIMITED,A0040400,24/05/2023,HED0334009,692.15,N,,N,N
Pendle Borough Council,Engineering & Special Projects,Supplies and Services,EFM : Photocopiers,4001,CANON (UK) LIMITED,A0040400,24/05/2023,HED0334009,13.6,N,,N,N
Pendle Borough Council,Engineering & Special Projects,Supplies and Services,EFM : Photocopiers,4001,CANON (UK) LIMITED,A0040400,24/05/2023,HED0334010,24.98,N,,N,N
Pendle Borough Council,Engineering & Special Projects,Supplies and Services,EFM : Photocopiers,4001,CANON (UK) LIMITED,A0040400,24/05/2023,HED0334001,88.76,N,,N,N
Pendle Borough Council,Engineering & Special Projects,Supplies and Services,EFM : Photocopiers,4001,CANON (UK) LIMITED,A0040400,24/05/2023,HED0334002,106.33,N,,N,N
Pendle Borough Council,Engineering & Special Projects,Supplies and Services,EFM : Photocopiers,4001,CANON (UK) LIMITED,A0040400,24/05/2023,HED0334000,198.02,N,,N,N
Pendle Borough Council,Engineering & Special Projects,Supplies and Services,EFM : Photocopiers,4001,CANON (UK) LIMITED,A0040400,24/05/2023,HED0333998,287.48,N,,N,N
Pendle Borough Council,Engineering & Special Projects,Supplies and Services,EFM : Photocopiers,4001,CANON (UK) LIMITED,A0040400,24/05/2023,HED0333999,314.27,N,,N,N
Pendle Borough Council,Planning & Building Control,Supplies and Services,EFM : Other Equipment,4003,CANON (UK) LIMITED,A0040400,24/05/2023,PBC0333995,57.96,N,,N,N
Pendle Borough Council,Engineering & Special Projects,Supplies and Services,Printing & Stationery,4301,CANON (UK) LIMITED,A0040400,24/05/2023,HED0334008,113.09,N,,N,N
Pendle Borough Council,Engineering & Special Projects,Supplies and Services,Printing & Stationery,4301,CANON (UK) LIMITED,A0040400,24/05/2023,HED0333996,8.58,N,,N,N
Pendle Borough Council,Engineering & Special Projects,Supplies and Services,Printing & Stationery,4301,CANON (UK) LIMITED,A0040400,24/05/2023,HED0333997,129.81,N,,N,N
Pendle Borough Council,Engineering & Special Projects,Supplies and Services,Printing & Stationery,4301,CANON (UK) LIMITED,A0040400,24/05/2023,HED0334007,217.42,N,,N,N
Pendle Borough Council,Financial Services,Supplies and Services,Consultants Fees,4401,CANON (UK) LIMITED,A0040400,18/05/2023,AAS0333929,85.24,N,,N,N
Pendle Borough Council,Engineering & Special Projects,Supplies and Services,Seminars etc All Costs,4601,SOLACE GROUP LIMITED,A0040401,18/05/2023,HED0333922,99,N,,N,N
Pendle Borough Council,Democratic & Legal Services,Premises Related Expense,Rents,2301,ROLLS ROYCE LEISURE,A0040636,11/05/2023,DAL0333607,400,N,,N,N
Pendle Borough Council,Engineering & Special Projects,Supplies and Services,Printing & Stationery,4301,CIVICA ELECTION SERVICES,A0041321,11/05/2023,HED0333654,3050.85,N,,N,N
Pendle Borough Council,Engineering & Special Projects,Supplies and Services,Postages,4501,CIVICA ELECTION SERVICES,A0041321,04/05/2023,HED0333485,2629.5,N,,N,N
Pendle Borough Council,Engineering & Special Projects,Supplies and Services,Postages,4501,CIVICA ELECTION SERVICES,A0041321,11/05/2023,HED0333654,28855.95,N,,N,N
Pendle Borough Council,Democratic & Legal Services,Premises Related Expense,Rents,2301,MARSDEN COMMUNITY PRIMARY SCHOOL,A0042343,11/05/2023,DAL0333614,100,N,,N,N
Pendle Borough Council,Parks & Recreation Services,Premises Related Expense,Grounds : R & M : Day to Day : Routine,2101,C & R WALNE ENGRAVERS,A0042734,18/05/2023,PCO0333721,67.5,N,,N,N
Pendle Borough Council,Engineering & Special Projects,Supplies and Services,Seminars etc All Costs,4601,LOCAL LAND CHARGES INSTITUTE,A0043069,04/05/2023,HED0333534,130,N,,N,N
Pendle Borough Council,Operational Services,Supplies and Services,Sub-Contractors,4007,S M SHEPHERD BUILDING CONTRACTORS,A0044037,04/05/2023,OPS0333516,20,N,,N,N
Pendle Borough Council,Operational Services,Supplies and Services,Sub-Contractors,4007,S M SHEPHERD BUILDING CONTRACTORS,A0044037,04/05/2023,OPS0333516,20,N,,N,N
Pendle Borough Council,Operational Services,Supplies and Services,Sub-Contractors,4007,S M SHEPHERD BUILDING CONTRACTORS,A0044037,04/05/2023,OPS0333515,120,N,,N,N
Pendle Borough Council,Operational Services,Supplies and Services,Sub-Contractors,4007,S M SHEPHERD BUILDING CONTRACTORS,A0044037,04/05/2023,OPS0333515,120,N,,N,N
Pendle Borough Council,Operational Services,Supplies and Services,Sub-Contractors,4007,S M SHEPHERD BUILDING CONTRACTORS,A0044037,04/05/2023,OPS0333514,180,N,,N,N
Pendle Borough Council,Operational Services,Supplies and Services,Sub-Contractors,4007,S M SHEPHERD BUILDING CONTRACTORS,A0044037,04/05/2023,OPS0333514,180,N,,N,N
Pendle Borough Council,Financial Services,,Interest,8011,BURNLEY BOROUGH COUNCIL,A0044855,11/05/2023,AAS0333715,1492.49,N,,N,N
Pendle Borough Council,Financial Services,,Interest on Transferred Debt,8113,BURNLEY BOROUGH COUNCIL,A0044855,11/05/2023,AAS0333715,8701.98,N,,N,N
Pendle Borough Council,Financial Services,,DME : Borough of Pendle,8401,BURNLEY BOROUGH COUNCIL,A0044855,11/05/2023,AAS0333715,84.62,N,,N,N
Pendle Borough Council,Engineering & Special Projects,Premises Related Expense,Grounds : R & M : Day to Day : Routine,2101,LOOP PUBLISHING LTD,A0047429,24/05/2023,HED0334044,25,N,,N,N
Pendle Borough Council,Engineering & Special Projects,Premises Related Expense,Grounds : R & M : Day to Day : Routine,2101,LOOP PUBLISHING LTD,A0047429,24/05/2023,HED0334045,175,N,,N,N
Pendle Borough Council,Parks & Recreation Services,Premises Related Expense,Grounds : R & M : Day to Day : Routine,2101,LOOP PUBLISHING LTD,A0047429,24/05/2023,PCO0334061,25,N,,N,N
Pendle Borough Council,Parks & Recreation Services,Premises Related Expense,Grounds : R & M : Day to Day : Routine,2101,LOOP PUBLISHING LTD,A0047429,24/05/2023,PCO0334060,150,N,,N,N
Pendle Borough Council,Property Services,Supplies and Services,Publicity & advertisement,4704,LOOP PUBLISHING LTD,A0047429,18/05/2023,EST0333911,275,N,,N,N
Pendle Borough Council,Property Services,Premises Related Expense,Electricity,2203,NPOWER,A0048483,18/05/2023,EST0333901,905.01,N,,N,N
Pendle Borough Council,Democratic & Legal Services,Premises Related Expense,Rents,2301,NEW LIFE CHRISTIAN CENTRE,A0048955,11/05/2023,DAL0333609,120,N,1051832,N,N
Pendle Borough Council,Planning & Building Control,,Other Income : Non-VATable,9303,VIP SYSTEM LIMITED,A0050529,11/05/2023,PBC0333673,2197.2,N,,N,N
Pendle Borough Council,Planning & Building Control,,Other Income : Non-VATable,9303,VIP SYSTEM LIMITED,A0050529,11/05/2023,PBC0333673,145.94,N,,N,N
Pendle Borough Council,Parks & Recreation Services,Transport Related Expense,Tprt : Repairs : General,3105,CAMPEY TURF CARE SYSTEMS,A0050717,24/05/2023,PCO0334069,154.94,N,,N,N
Pendle Borough Council,Democratic & Legal Services,Premises Related Expense,Rents,2301,LIBERATA UK LTD,A0051618,11/05/2023,DAL0333623,200,N,,N,N
Pendle Borough Council,Financial Services,Premises Related Expense,Rents,2301,LIBERATA UK LTD,A0051618,11/05/2023,AAS0333711,502.33,N,,N,N
Pendle Borough Council,Financial Services,Agency Costs,#N/A,5303,LIBERATA UK LTD,A0051618,11/05/2023,AAS0333709,9382.55,N,,N,N
Pendle Borough Council,Financial Services,Agency Costs,#N/A,5303,LIBERATA UK LTD,A0051618,11/05/2023,AAS0333710,6191.67,N,,N,N
Pendle Borough Council,Financial Services,Agency Costs,#N/A,5303,LIBERATA UK LTD,A0051618,11/05/2023,AAS0333710,34439.05,N,,N,N
Pendle Borough Council,Financial Services,Agency Costs,#N/A,5303,LIBERATA UK LTD,A0051618,11/05/2023,AAS0333710,30524.21,N,,N,N
Pendle Borough Council,Financial Services,Agency Costs,#N/A,5303,LIBERATA UK LTD,A0051618,11/05/2023,AAS0333710,87715.02,N,,N,N
Pendle Borough Council,Financial Services,Agency Costs,#N/A,5303,LIBERATA UK LTD,A0051618,11/05/2023,AAS0333710,57718.75,N,,N,N
Pendle Borough Council,Financial Services,Agency Costs,#N/A,5303,LIBERATA UK LTD,A0051618,11/05/2023,AAS0333710,89614.79,N,,N,N
Pendle Borough Council,Financial Services,Agency Costs,#N/A,5303,LIBERATA UK LTD,A0051618,11/05/2023,AAS0333710,117970.91,N,,N,N
Pendle Borough Council,Engineering & Special Projects,Capital Costs,Capital: Design Fees,CD53,LIBERATA UK LTD,A0051618,04/05/2023,HED0333533,3947.83,N,,N,N
Pendle Borough Council,Engineering & Special Projects,Capital Costs,Ren Grant : 1996 Act,CH22,BLUEBELL NORTH WEST LIMITED,A0051694,24/05/2023,HED0334017,6325,N,,N,N
Pendle Borough Council,Democratic & Legal Services,Premises Related Expense,Rents,2301,REEDLEY PRIMARY SCHOOL,A0051734,11/05/2023,DAL0333599,100,N,,N,N
Pendle Borough Council,Democratic & Legal Services,Premises Related Expense,Rents,2301,INDEPENDENT METHODIST CHURCH,A0052318,11/05/2023,DAL0333589,300,N,,N,N
Pendle Borough Council,Operational Services,Premises Related Expense,Bldgs : R & M : Day To Day,2001,MONKS CONTRACTORS LIMITED,A0053900,18/05/2023,OPS0333897,815,N,,N,N
Pendle Borough Council,Parks & Recreation Services,Transport Related Expense,Tprt : Repairs : General,3105,FLEET STREET GARAGE LIMITED,A0054291,04/05/2023,PCO0333471,625,N,,N,N
Pendle Borough Council,Engineering & Special Projects,Premises Related Expense,Bldgs : R & M : Abnormal,2002,WHATMORE LTD,A0054380,11/05/2023,HED0333627,96,N,,N,N
Pendle Borough Council,Engineering & Special Projects,Premises Related Expense,Bldgs : R & M : Abnormal,2002,WHATMORE LTD,A0054380,11/05/2023,HED0333625,627,N,,N,N
Pendle Borough Council,Engineering & Special Projects,Premises Related Expense,Bldgs : R & M : Abnormal,2002,WHATMORE LTD,A0054380,11/05/2023,HED0333626,718.14,N,,N,N
Pendle Borough Council,Engineering & Special Projects,Supplies and Services,Other Expenses,4705,TOGETHER HOUSING ASSOCIATION,A0055008,18/05/2023,HED0333899,500,N,,N,N
Pendle Borough Council,Financial Services,Supplies and Services,Consultants Fees,4401,LINK TREASURY SERVICES LIMITED,A0055209,04/05/2023,AAS0333575,4250,N,,N,N
Pendle Borough Council,Democratic & Legal Services,Premises Related Expense,Rents,2301,BRIERFIELD BAPTIST CHURCH,A0056872,11/05/2023,DAL0333603,150,N,,N,N
Pendle Borough Council,Engineering & Special Projects,Premises Related Expense,Grounds : R & M : Day to Day : Routine,2101,NATIONAL PLAYING FIELDS ASSOCIATION,A0057791,04/05/2023,HED0333482,300,N,306070,N,N
Pendle Borough Council,Operational Services,Premises Related Expense,Bldgs : R & M : Day To Day,2001,P LEE WASTE OIL LIMTED,A0058412,11/05/2023,OPS0333634,820,N,,N,N
Pendle Borough Council,Engineering & Special Projects,Agency Costs,Lancashire C C,5102,NSL LIMITED,A0059256,18/05/2023,HED0333730,2005.6,N,,N,N
Pendle Borough Council,Engineering & Special Projects,Supplies and Services,Adverts : Statutory Notice,4702,NATIONAL WORLD PUBLISHING LTD,A0059640,18/05/2023,HED0333876,260.01,N,,N,N
Pendle Borough Council,Engineering & Special Projects,Supplies and Services,Adverts : Statutory Notice,4702,NATIONAL WORLD PUBLISHING LTD,A0059640,18/05/2023,HED0333732,286.01,N,,N,N
Pendle Borough Council,Engineering & Special Projects,Supplies and Services,Adverts : Statutory Notice,4702,NATIONAL WORLD PUBLISHING LTD,A0059640,04/05/2023,HED0333497,338.01,N,,N,N
Pendle Borough Council,Engineering & Special Projects,Supplies and Services,Adverts : Statutory Notice,4702,NATIONAL WORLD PUBLISHING LTD,A0059640,24/05/2023,HED0334013,364.01,N,,N,N
Pendle Borough Council,Engineering & Special Projects,Supplies and Services,Publicity & advertisement,4704,NATIONAL WORLD PUBLISHING LTD,A0059640,18/05/2023,HED0333923,520.02,N,,N,N
Pendle Borough Council,Engineering & Special Projects,Transfer Payments,Accommodation ,6103,HILL VIEW (PRIVATE) HOTEL,A0059754,04/05/2023,HED0333540,12735,N,,N,N
Pendle Borough Council,Engineering & Special Projects,Premises Related Expense,Rents,2301,BRIGHT LITES UK LIMITED,A0059988,18/05/2023,HED0333879,395,N,,N,N
Pendle Borough Council,Parks & Recreation Services,Transport Related Expense,Tprt : Repairs : General,3105,VALE ENGINEERING (YORK) LTD,A0061399,24/05/2023,PCO0334072,11.2,N,,N,N
Pendle Borough Council,Human Resources,Supplies and Services,Seminars etc All Costs,4601,ABC NORTH WEST LTD,A0061417,11/05/2023,PER0333644,69,N,,N,N
Pendle Borough Council,Human Resources,Supplies and Services,Seminars etc All Costs,4601,ABC NORTH WEST LTD,A0061417,11/05/2023,PER0333645,69,N,,N,N
Pendle Borough Council,Democratic & Legal Services,Premises Related Expense,Rents,2301,NORTH VALLEY COMMUNITY CENTRE,A0062271,11/05/2023,DAL0333619,96,N,,N,N
Pendle Borough Council,Engineering & Special Projects,Supplies and Services,Other Expenses,4705,TRAWDEN FOREST PARISH COUNCIL,A0062286,24/05/2023,HED0334014,525,N,,N,N
Pendle Borough Council,Engineering & Special Projects,Supplies and Services,Uniforms,4202,REDACT - PERSONAL DATA,A0062864,04/05/2023,HED0333489,2,N,,N,N
Pendle Borough Council,Engineering & Special Projects,Supplies and Services,Uniforms,4202,REDACT - PERSONAL DATA,A0062864,18/05/2023,HED0333882,45,N,,N,N
Pendle Borough Council,Operational Services,Premises Related Expense,Bldgs : R & M : Day To Day,2001,NORTH WEST TRADING COMPANY,A0063527,11/05/2023,OPS0333642,20,N,,N,N
Pendle Borough Council,Democratic & Legal Services,Premises Related Expense,Rents,2301,THE RAINHALL CENTRE,A0066193,11/05/2023,DAL0333618,350,N,,N,N
Pendle Borough Council,Human Resources,Transport Related Expense,Tprt : Annual Hire Charge,3601,LEX AUTOLEASE LIMITED,A0066530,24/05/2023,PER0333990,343.04,N,,N,N
Pendle Borough Council,Human Resources,Indirect Employee Expenses,Emp : Medical Expenses,1236,PEOPLE ASSET MANAGEMENT LIMITED,A0067613,18/05/2023,PER0333755,62.84,N,,N,N
Pendle Borough Council,Human Resources,Indirect Employee Expenses,Emp : Medical Expenses,1236,PEOPLE ASSET MANAGEMENT LIMITED,A0067613,11/05/2023,PER0333646,142.5,N,,N,N
Pendle Borough Council,Human Resources,Indirect Employee Expenses,Emp : Medical Expenses,1236,PEOPLE ASSET MANAGEMENT LIMITED,A0067613,18/05/2023,PER0333755,173.28,N,,N,N
Pendle Borough Council,Engineering & Special Projects,Supplies and Services,LCC Levy (Admins Costs),4419,PATROL,A0067663,04/05/2023,HED0333498,46.8,N,,N,N
Pendle Borough Council,Operational Services,Supplies and Services,EFM : Office and computer equipment,4002,LIMPET LABELS UK LIMITED,A0067671,18/05/2023,OPS0333761,420.31,N,,N,N
Pendle Borough Council,Operational Services,Transport Related Expense,Tprt : Repairs : General,3105,PROBRUSH T/A NORTHERN MUNICIPAL SPARES LTD,A0068263,24/05/2023,OPS0334031,240.24,N,,N,N
Pendle Borough Council,Operational Services,Transport Related Expense,Tprt : Repairs : General,3105,PROBRUSH T/A NORTHERN MUNICIPAL SPARES LTD,A0068263,24/05/2023,OPS0334031,240.24,N,,N,N
Pendle Borough Council,Operational Services,Transport Related Expense,Tprt : Repairs : General,3105,PROBRUSH T/A NORTHERN MUNICIPAL SPARES LTD,A0068263,24/05/2023,OPS0334031,240.24,N,,N,N
Pendle Borough Council,Operational Services,Transport Related Expense,Tprt : Repairs : General,3105,PROBRUSH T/A NORTHERN MUNICIPAL SPARES LTD,A0068263,24/05/2023,OPS0334031,240.24,N,,N,N
Pendle Borough Council,Operational Services,Transport Related Expense,Tprt : Repairs : General,3105,PROBRUSH T/A NORTHERN MUNICIPAL SPARES LTD,A0068263,24/05/2023,OPS0334031,240.24,N,,N,N
Pendle Borough Council,Operational Services,Transport Related Expense,Tprt : Repairs : General,3105,PROBRUSH T/A NORTHERN MUNICIPAL SPARES LTD,A0068263,24/05/2023,OPS0334031,240.25,N,,N,N
Pendle Borough Council,Engineering & Special Projects,Premises Related Expense,Water & Sewerage,2501,CHIPSIDE LTD,A0068587,18/05/2023,HED0333735,12.55,N,,N,N
Pendle Borough Council,Parks & Recreation Services,Supplies and Services,Expenditure : Materials,0002,M C & M A STEWART HAULAGE,A0068863,18/05/2023,PCO0333873,570,N,,N,N
Pendle Borough Council,Parks & Recreation Services,Premises Related Expense,Grounds : R & M : Day to Day : Routine,2101,M C & M A STEWART HAULAGE,A0068863,18/05/2023,PCO0333874,498.5,N,,N,N
Pendle Borough Council,Parks & Recreation Services,Supplies and Services,Expenditure : Materials,0002,SHERRIFF AMENITY - AGROVISTA UK LIMITED,A0068904,18/05/2023,PCO0333865,2117.78,N,,N,N
Pendle Borough Council,Parks & Recreation Services,Supplies and Services,Expenditure : Materials,0002,SHERRIFF AMENITY - AGROVISTA UK LIMITED,A0068904,18/05/2023,PCO0333864,423.2,N,,N,N
Pendle Borough Council,Parks & Recreation Services,Supplies and Services,Expenditure : Materials,0002,SHERRIFF AMENITY - AGROVISTA UK LIMITED,A0068904,18/05/2023,PCO0333864,3400,N,,N,N
Pendle Borough Council,Financial Services,Supplies and Services,Subscriptions & Donations,4706,DISTRICT COUNCILS NETWORK,A0069643,11/05/2023,AAS0333714,2662,N,,N,N
Pendle Borough Council,Planning & Building Control,,Other Income : Non-VATable,9303,HARRIS SCREEN PRINT LIMITED,A0069763,24/05/2023,PBC0333994,305,N,,N,N
Pendle Borough Council,Engineering & Special Projects,Premises Related Expense,Grounds : R & M : Day to Day : Routine,2101,GO VELO LIMITED,A0072191,18/05/2023,HED0333892,546,N,,N,N
Pendle Borough Council,Engineering & Special Projects,Supplies and Services,#N/A,4425,UNITED UTILITIES WATER PLC,A0072400,04/05/2023,HED0333480,95.84,N,,N,N
Pendle Borough Council,Operational Services,Supplies and Services,Sub-Contractors,4007,RENTOKIL INITIAL UK LIMITED,A0072816,24/05/2023,OPS0334034,11.47,N,,N,N
Pendle Borough Council,Operational Services,Supplies and Services,Sub-Contractors,4007,RENTOKIL INITIAL UK LIMITED,A0072816,24/05/2023,OPS0334034,139.22,N,,N,N
Pendle Borough Council,Operational Services,Supplies and Services,Sub-Contractors,4007,RENTOKIL INITIAL UK LIMITED,A0072816,24/05/2023,OPS0334034,31.02,N,,N,N
Pendle Borough Council,Parks & Recreation Services,Premises Related Expense,Grounds : R & M : Day to Day : Routine,2101,FENLAND LEISURE PRODUCTS LIMITED,A0072950,24/05/2023,PCO4006692,-89.5,N,,N,N
Pendle Borough Council,Parks & Recreation Services,Premises Related Expense,Grounds : R & M : Day to Day : Routine,2101,FENLAND LEISURE PRODUCTS LIMITED,A0072950,24/05/2023,PCO0334066,168,N,,N,N
Pendle Borough Council,Financial Services,Supplies and Services,Subscriptions & Donations,4706,VODAFONE LIMITED,A0076999,18/05/2023,AAS0333934,1057.89,N,,N,N
Pendle Borough Council,Property Services,Premises Related Expense,Bldgs : R & M : Day To Day,2001,ARROWLINE LIMITED,A0077222,24/05/2023,EST0334091,1432.29,N,,N,N
Pendle Borough Council,Property Services,Premises Related Expense,Bldgs : R & M : Day To Day,2001,ARROWLINE LIMITED,A0077222,24/05/2023,EST0334091,2148.44,N,,N,N
Pendle Borough Council,Financial Services,,Precept Parish & T Council,0303,KELBROOK & SOUGH PARISH COUNCIL,A0081332,11/05/2023,AAS0333414,3812.5,N,,N,N
Pendle Borough Council,Democratic & Legal Services,Premises Related Expense,Rents,2301,KELBROOK AND SOUGH VILLAGE HALL,A0081339,11/05/2023,DAL0333605,120,N,1101005,N,N
Pendle Borough Council,Democratic & Legal Services,Premises Related Expense,Rents,2301,CHRIST CHURCH COLNE,A0081344,11/05/2023,DAL0333622,250,N,,N,N
Pendle Borough Council,Democratic & Legal Services,Premises Related Expense,Rents,2301,PETER BIRTWISTLE TRUST,A0081345,11/05/2023,DAL0333598,70,N,,N,N
Pendle Borough Council,Engineering & Special Projects,Supplies and Services,Subscriptions & Donations,4706,POSITIVE ACTION IN THE COMMUNITY,A0081553,18/05/2023,HED0333756,16000,N,1088536,N,N
Pendle Borough Council,Parks & Recreation Services,Transport Related Expense,Diesel Oil,3202,TATE FUEL OILS LIMITED,A0082819,04/05/2023,PCO0333468,2286.48,N,,N,N
Pendle Borough Council,Property Services,Premises Related Expense,Bldgs : R & M : Day To Day,2001,THE SMALL SIGN COMPANY,A0082998,24/05/2023,EST0334090,135,N,,N,N
Pendle Borough Council,Property Services,Capital Costs,Capital : Payments,CD14,THE SMALL SIGN COMPANY,A0082998,18/05/2023,EST0333903,135,N,,N,N
Pendle Borough Council,Financial Services,Supplies and Services,Allpay,4422,ALLPAY LIMITED,A0084372,04/05/2023,AAS0333573,10,N,,N,N
Pendle Borough Council,Financial Services,Supplies and Services,Allpay,4422,ALLPAY LIMITED,A0084372,04/05/2023,AAS0333572,12.37,N,,N,N
Pendle Borough Council,Financial Services,Supplies and Services,Allpay,4422,ALLPAY LIMITED,A0084372,04/05/2023,AAS0333569,16.55,N,,N,N
Pendle Borough Council,Financial Services,Supplies and Services,Allpay,4422,ALLPAY LIMITED,A0084372,04/05/2023,AAS0333570,30.94,N,,N,N
Pendle Borough Council,Financial Services,Supplies and Services,Allpay,4422,ALLPAY LIMITED,A0084372,04/05/2023,AAS0333574,148.5,N,,N,N
Pendle Borough Council,Financial Services,Supplies and Services,Allpay,4422,ALLPAY LIMITED,A0084372,04/05/2023,AAS0333571,2155.63,N,,N,N
Pendle Borough Council,Engineering & Special Projects,,Housing Impts/Cap Repairs,0104,ELITE PLUMBING,A0084584,11/05/2023,HED0333661,500,N,,N,N
Pendle Borough Council,Engineering & Special Projects,,Housing Impts/Cap Repairs,0104,ELITE PLUMBING,A0084584,24/05/2023,HED0334019,1600,N,,N,N
Pendle Borough Council,Engineering & Special Projects,Premises Related Expense,Bldgs : R & M : Abnormal,2002,ELITE PLUMBING,A0084584,04/05/2023,HED0333504,1687.14,N,,N,N
Pendle Borough Council,Engineering & Special Projects,Capital Costs,Ren Grant : 1996 Act,CH22,ELITE PLUMBING,A0084584,24/05/2023,HED0334018,10075.4,N,,N,N
Pendle Borough Council,Engineering & Special Projects,Capital Costs,Ren Grant : 1996 Act,CH22,ELITE PLUMBING,A0084584,24/05/2023,HED0334020,27610,N,,N,N
Pendle Borough Council,Democratic & Legal Services,Premises Related Expense,Rents,2301,VICTORIA PARK PAVILION CIC,A0085028,11/05/2023,DAL0333610,150,N,,N,N
Pendle Borough Council,Engineering & Special Projects,Premises Related Expense,Grounds : R & M : Day to Day : Routine,2101,KEVIN WILKINSON LANDSCAPES LTD,A0085660,11/05/2023,HED0333669,252,N,,N,N
Pendle Borough Council,Property Services,Premises Related Expense,Bldgs : R & M : Day To Day,2001,OFFICE COOLERS LTD,A0085846,24/05/2023,EST0334075,210.11,N,,N,N
Pendle Borough Council,Democratic & Legal Services,Premises Related Expense,Rents,2301,REDACT - PERSONAL DATA,A0089260,11/05/2023,DAL0333593,30,N,,N,N
Pendle Borough Council,Democratic & Legal Services,Premises Related Expense,Rents,2301,SALTERFORTH VILLAGE HALL,A0089262,11/05/2023,DAL0333597,115,N,,N,N
Pendle Borough Council,Property Services,Premises Related Expense,Bldgs : R & M : Day To Day,2001,CATCHPOINT (UK) LIMITED,A0089500,04/05/2023,EST0333543,384,N,,N,N
Pendle Borough Council,Democratic & Legal Services,Premises Related Expense,Rents,2301,AGE UK LANCASHIRE,A0089644,11/05/2023,DAL0333587,50,N,1142294,N,N
Pendle Borough Council,Financial Services,Supplies and Services,Subscriptions & Donations,4706,INFORM CPI LIMITED,A0089895,04/05/2023,AAS0333511,90,N,,N,N
Pendle Borough Council,Financial Services,Supplies and Services,Subscriptions & Donations,4706,INFORM CPI LIMITED,A0089895,24/05/2023,AAS0334101,202.5,N,,N,N
Pendle Borough Council,Financial Services,Supplies and Services,Subscriptions & Donations,4706,INFORM CPI LIMITED,A0089895,24/05/2023,AAS0334099,900,N,,N,N
Pendle Borough Council,Financial Services,Supplies and Services,Subscriptions & Donations,4706,INFORM CPI LIMITED,A0089895,04/05/2023,AAS0333512,1980,N,,N,N
Pendle Borough Council,Financial Services,Supplies and Services,Subscriptions & Donations,4706,INFORM CPI LIMITED,A0089895,24/05/2023,AAS0334100,3082.5,N,,N,N
Pendle Borough Council,Democratic & Legal Services,Premises Related Expense,Rents,2301,TRAWDEN FOREST COMMUNITY CENTRE,A0090063,11/05/2023,DAL0333591,180,N,1158193,N,N
Pendle Borough Council,Engineering & Special Projects,Premises Related Expense,Bldgs : R & M : Abnormal,2002,A B C ELECTRICAL,A0090085,24/05/2023,HED0334022,150,N,,N,N
Pendle Borough Council,Engineering & Special Projects,Supplies and Services,Publicity & advertisement,4704,WE LOVE CREATIVE LIMITED,A0090098,18/05/2023,HED0333731,120,N,,N,N
Pendle Borough Council,Engineering & Special Projects,Supplies and Services,Publicity & advertisement,4704,WE LOVE CREATIVE LIMITED,A0090098,11/05/2023,HED0333657,400,N,,N,N
Pendle Borough Council,Engineering & Special Projects,Premises Related Expense,Grounds : R & M : Day to Day : Routine,2101,ROBINSON & LAWLOR LIMITED,A0090107,04/05/2023,HED0333536,75,N,,N,N
Pendle Borough Council,Democratic & Legal Services,Premises Related Expense,Rents,2301,HIGHERFORD METHODIST CHURCH,A0090259,11/05/2023,DAL0333594,125,N,,N,N
Pendle Borough Council,Democratic & Legal Services,Premises Related Expense,Rents,2301,BLACKO PRIMARY SCHOOL,A0090260,11/05/2023,DAL0333615,100,N,,N,N
Pendle Borough Council,Democratic & Legal Services,Premises Related Expense,Rents,2301,LANESHAWBRIDGE PRIMARY SCHOOL,A0090261,11/05/2023,DAL0333616,100,N,,N,N
Pendle Borough Council,Democratic & Legal Services,Premises Related Expense,Rents,2301,DIOCESE OF LEEDS ST JOSEPHS BARNOLDSWICK,A0090262,11/05/2023,DAL0333621,250,N,513063,N,N
Pendle Borough Council,Democratic & Legal Services,Premises Related Expense,Rents,2301,PENDLE PRIMARY ACADEMY,A0090263,11/05/2023,DAL0333617,100,N,,N,N
Pendle Borough Council,Democratic & Legal Services,Premises Related Expense,Rents,2301,HOLY TRINITY CHURCH,A0090264,11/05/2023,DAL0333606,140,N,,N,N
Pendle Borough Council,Engineering & Special Projects,Supplies and Services,Mayoral Expenses,4614,S & A PHOTOGRAPHY,A0090511,11/05/2023,HED0333632,220,N,,N,N
Pendle Borough Council,Democratic & Legal Services,Premises Related Expense,Rents,2301,ST JOHN WITH ST PHILIP PCC,A0090537,11/05/2023,DAL0333612,600,N,,N,N
Pendle Borough Council,Revenues Services,Supplies and Services,DSS Collection Fee,4414,PS&P LTD,A0090720,04/05/2023,TRE0333506,10,N,,N,N
Pendle Borough Council,Financial Services,Premises Related Expense,Gas,2202,SEFE ENERGY LIMITED,A0090838,02/05/2023,AAS0334364,22.14,N,,N,N
Pendle Borough Council,Financial Services,Premises Related Expense,Gas,2202,SEFE ENERGY LIMITED,A0090838,02/05/2023,AAS0334365,58.84,N,,N,N
Pendle Borough Council,Financial Services,Premises Related Expense,Gas,2202,SEFE ENERGY LIMITED,A0090838,02/05/2023,AAS0334377,167.87,N,,N,N
Pendle Borough Council,Financial Services,Premises Related Expense,Gas,2202,SEFE ENERGY LIMITED,A0090838,02/05/2023,AAS0334378,224.26,N,,N,N
Pendle Borough Council,Financial Services,Premises Related Expense,Gas,2202,SEFE ENERGY LIMITED,A0090838,02/05/2023,AAS0334372,64.09,N,,N,N
Pendle Borough Council,Financial Services,Premises Related Expense,Gas,2202,SEFE ENERGY LIMITED,A0090838,02/05/2023,AAS0334376,228.25,N,,N,N
Pendle Borough Council,Financial Services,Premises Related Expense,Gas,2202,SEFE ENERGY LIMITED,A0090838,02/05/2023,AAS0334379,202.27,N,,N,N
Pendle Borough Council,Financial Services,Premises Related Expense,Gas,2202,SEFE ENERGY LIMITED,A0090838,02/05/2023,AAS0334361,332.83,N,,N,N
Pendle Borough Council,Financial Services,Premises Related Expense,Gas,2202,SEFE ENERGY LIMITED,A0090838,02/05/2023,AAS0334366,35.3,N,,N,N
Pendle Borough Council,Financial Services,Premises Related Expense,Gas,2202,SEFE ENERGY LIMITED,A0090838,02/05/2023,AAS0334363,88.2,N,,N,N
Pendle Borough Council,Financial Services,Premises Related Expense,Gas,2202,SEFE ENERGY LIMITED,A0090838,02/05/2023,AAS0334362,31.14,N,,N,N
Pendle Borough Council,Financial Services,Premises Related Expense,Gas,2202,SEFE ENERGY LIMITED,A0090838,02/05/2023,AAS0334374,408.24,N,,N,N
Pendle Borough Council,Financial Services,Premises Related Expense,Gas,2202,SEFE ENERGY LIMITED,A0090838,02/05/2023,AAS0334369,154.01,N,,N,N
Pendle Borough Council,Engineering & Special Projects,Supplies and Services,Other Expenses,4705,ABC FOOD LAW LIMITED,A0090857,18/05/2023,HED0333887,450,N,,N,N
Pendle Borough Council,Engineering & Special Projects,Supplies and Services,EFM : Office and computer equipment,4002,RESTORE DATASHRED,A0091201,04/05/2023,HED0333505,221,N,,N,N
Pendle Borough Council,Engineering & Special Projects,Supplies and Services,Other Expenses,4705,RESTORE DATASHRED,A0091201,04/05/2023,HED0333505,22.75,N,,N,N
Pendle Borough Council,Engineering & Special Projects,Supplies and Services,Other Expenses,4705,RESTORE DATASHRED,A0091201,04/05/2023,HED0333505,13,N,,N,N
Pendle Borough Council,Engineering & Special Projects,Supplies and Services,Other Expenses,4705,RESTORE DATASHRED,A0091201,04/05/2023,HED0333505,6.5,N,,N,N
Pendle Borough Council,Engineering & Special Projects,Supplies and Services,Other Expenses,4705,RESTORE DATASHRED,A0091201,04/05/2023,HED0333505,45.5,N,,N,N
Pendle Borough Council,Engineering & Special Projects,Supplies and Services,Other Expenses,4705,RESTORE DATASHRED,A0091201,04/05/2023,HED0333505,110.5,N,,N,N
Pendle Borough Council,Parks & Recreation Services,Premises Related Expense,Grounds : R & M : Day to Day : Routine,2101,LIGHTHOUSE TAI CHI,A0091248,04/05/2023,PCO0333463,375,N,,N,N
Pendle Borough Council,Operational Services,Transport Related Expense,Tprt : Repairs : General,3105,QUARTIX LIMITED,A0091353,24/05/2023,OPS0334059,41.7,N,,N,N
Pendle Borough Council,Operational Services,Transport Related Expense,Tprt : Repairs : General,3105,QUARTIX LIMITED,A0091353,24/05/2023,OPS0334059,41.7,N,,N,N
Pendle Borough Council,Operational Services,Transport Related Expense,Tprt : Repairs : General,3105,QUARTIX LIMITED,A0091353,24/05/2023,OPS0334059,41.7,N,,N,N
Pendle Borough Council,Operational Services,Transport Related Expense,Tprt : Repairs : General,3105,QUARTIX LIMITED,A0091353,24/05/2023,OPS0334059,41.7,N,,N,N
Pendle Borough Council,Operational Services,Transport Related Expense,Tprt : Repairs : General,3105,QUARTIX LIMITED,A0091353,24/05/2023,OPS0334059,41.7,N,,N,N
Pendle Borough Council,Operational Services,Transport Related Expense,Tprt : Repairs : General,3105,QUARTIX LIMITED,A0091353,24/05/2023,OPS0334059,41.7,N,,N,N
Pendle Borough Council,Operational Services,Transport Related Expense,Tprt : Repairs : General,3105,QUARTIX LIMITED,A0091353,24/05/2023,OPS0334059,41.7,N,,N,N
Pendle Borough Council,Operational Services,Transport Related Expense,Tprt : Repairs : General,3105,QUARTIX LIMITED,A0091353,24/05/2023,OPS0334059,41.7,N,,N,N
Pendle Borough Council,Operational Services,Transport Related Expense,Tprt : Repairs : General,3105,QUARTIX LIMITED,A0091353,24/05/2023,OPS0334059,41.7,N,,N,N
Pendle Borough Council,Operational Services,Transport Related Expense,Tprt : Repairs : General,3105,QUARTIX LIMITED,A0091353,24/05/2023,OPS0334059,41.7,N,,N,N
Pendle Borough Council,Operational Services,Transport Related Expense,Tprt : Repairs : General,3105,QUARTIX LIMITED,A0091353,24/05/2023,OPS0334059,41.7,N,,N,N
Pendle Borough Council,Operational Services,Transport Related Expense,Tprt : Repairs : General,3105,QUARTIX LIMITED,A0091353,24/05/2023,OPS0334059,41.7,N,,N,N
Pendle Borough Council,Operational Services,Transport Related Expense,Tprt : Repairs : General,3105,QUARTIX LIMITED,A0091353,24/05/2023,OPS0334059,41.7,N,,N,N
Pendle Borough Council,Operational Services,Transport Related Expense,Tprt : Repairs : General,3105,QUARTIX LIMITED,A0091353,24/05/2023,OPS0334059,41.7,N,,N,N
Pendle Borough Council,Operational Services,Transport Related Expense,Tprt : Repairs : General,3105,QUARTIX LIMITED,A0091353,24/05/2023,OPS0334059,41.7,N,,N,N
Pendle Borough Council,Operational Services,Transport Related Expense,Diesel Oil,3202,WCF LIMITED,A0091385,04/05/2023,OPS0333459,670,N,,N,N
Pendle Borough Council,Operational Services,Supplies and Services,Other Expenses,4705,PERMISERV LIMITED,A0091396,18/05/2023,OPS0333763,190.27,N,,N,N
Pendle Borough Council,Operational Services,Supplies and Services,Miscellaneous : Other,4707,PERMISERV LIMITED,A0091396,11/05/2023,OPS0333651,10,N,,N,N
Pendle Borough Council,Operational Services,Supplies and Services,Miscellaneous : Other,4707,PERMISERV LIMITED,A0091396,11/05/2023,OPS0333651,207.58,N,,N,N
Pendle Borough Council,Engineering & Special Projects,,Deposits in Lieu of Bond,B669,TAYLORS FUN FAIRS,A0091447,04/05/2023,HED0333500,1000,N,,N,N
Pendle Borough Council,Engineering & Special Projects,Supplies and Services,Subscriptions & Donations,4706,PS RESEARCH LTD,A0091503,04/05/2023,HED0333474,6500,N,,N,N
Pendle Borough Council,Engineering & Special Projects,Capital Costs,Ren Grant : 1996 Act,CH22,QUALITY CONSULTANTS,A0091576,11/05/2023,HED0333659,224,N,,N,N
Pendle Borough Council,Engineering & Special Projects,Capital Costs,Ren Grant : 1996 Act,CH22,QUALITY CONSULTANTS,A0091576,24/05/2023,HED0334024,227,N,,N,N
Pendle Borough Council,Parks & Recreation Services,Agency Staff,Emp : Basic Wages,1001,NW RECRUITMENT SERVICES LIMITED,A0091588,18/05/2023,PCO0333868,3240.98,N,,N,N
Pendle Borough Council,Parks & Recreation Services,Agency Staff,Emp : Basic Wages,1001,NW RECRUITMENT SERVICES LIMITED,A0091588,18/05/2023,PCO0333727,3677.27,N,,N,N
Pendle Borough Council,Parks & Recreation Services,Agency Staff,Emp : Basic Wages,1001,NW RECRUITMENT SERVICES LIMITED,A0091588,04/05/2023,PCO0333513,3752.17,N,,N,N
Pendle Borough Council,Parks & Recreation Services,Agency Staff,Emp : Basic Wages,1001,NW RECRUITMENT SERVICES LIMITED,A0091588,24/05/2023,PCO0334063,4110.51,N,,N,N
Pendle Borough Council,Parks & Recreation Services,Agency Staff,Emp : Agency Wages,1004,NW RECRUITMENT SERVICES LIMITED,A0091588,04/05/2023,PCO0333472,62.01,N,,N,N
Pendle Borough Council,Parks & Recreation Services,Agency Staff,Emp : Agency Wages,1004,NW RECRUITMENT SERVICES LIMITED,A0091588,04/05/2023,PCO0333464,189.67,N,,N,N
Pendle Borough Council,Operational Services,Agency Staff,Emp : Agency Wages,1004,NW RECRUITMENT SERVICES LIMITED,A0091588,18/05/2023,OPS0333861,3208.81,N,,N,N
Pendle Borough Council,Operational Services,Agency Staff,Emp : Agency Wages,1004,NW RECRUITMENT SERVICES LIMITED,A0091588,18/05/2023,OPS0333862,4061.49,N,,N,N
Pendle Borough Council,Operational Services,Agency Staff,Emp : Agency Wages,1004,NW RECRUITMENT SERVICES LIMITED,A0091588,18/05/2023,OPS0333861,1722.97,N,,N,N
Pendle Borough Council,Operational Services,Agency Staff,Emp : Agency Wages,1004,NW RECRUITMENT SERVICES LIMITED,A0091588,18/05/2023,OPS0333862,2625.97,N,,N,N
Pendle Borough Council,Operational Services,Agency Staff,Emp : Agency Wages,1004,NW RECRUITMENT SERVICES LIMITED,A0091588,18/05/2023,OPS0333861,1079.28,N,,N,N
Pendle Borough Council,Operational Services,Agency Staff,Emp : Agency Wages,1004,NW RECRUITMENT SERVICES LIMITED,A0091588,18/05/2023,OPS0333862,1739.41,N,,N,N
Pendle Borough Council,Parks & Recreation Services,Supplies and Services,EFM : Other Equipment,4003,NW RECRUITMENT SERVICES LIMITED,A0091588,18/05/2023,PCO0333868,415.69,N,,N,N
Pendle Borough Council,Parks & Recreation Services,Supplies and Services,EFM : Other Equipment,4003,NW RECRUITMENT SERVICES LIMITED,A0091588,04/05/2023,PCO0333513,531.79,N,,N,N
Pendle Borough Council,Parks & Recreation Services,Supplies and Services,EFM : Other Equipment,4003,NW RECRUITMENT SERVICES LIMITED,A0091588,18/05/2023,PCO0333727,531.79,N,,N,N
Pendle Borough Council,Operational Services,Transport Related Expense,Tprt : Annual Hire Charge,3601,GO PLANT FLEET SERVICES LIMITED,A0091600,04/05/2023,OPS0333538,3540.62,N,,N,N
Pendle Borough Council,Operational Services,Transport Related Expense,Tprt : Annual Hire Charge,3601,GO PLANT FLEET SERVICES LIMITED,A0091600,04/05/2023,OPS0333538,3540.62,N,,N,N
Pendle Borough Council,Operational Services,Transport Related Expense,Tprt : Annual Hire Charge,3601,GO PLANT FLEET SERVICES LIMITED,A0091600,04/05/2023,OPS0333538,3540.62,N,,N,N
Pendle Borough Council,Operational Services,Transport Related Expense,Tprt : Annual Hire Charge,3601,GO PLANT FLEET SERVICES LIMITED,A0091600,04/05/2023,OPS0333538,3540.62,N,,N,N
Pendle Borough Council,Operational Services,Transport Related Expense,Tprt : Annual Hire Charge,3601,GO PLANT FLEET SERVICES LIMITED,A0091600,04/05/2023,OPS0333538,3540.62,N,,N,N
Pendle Borough Council,Operational Services,Transport Related Expense,Tprt : Annual Hire Charge,3601,GO PLANT FLEET SERVICES LIMITED,A0091600,04/05/2023,OPS0333538,3344.64,N,,N,N
Pendle Borough Council,Operational Services,Transport Related Expense,Tprt : Annual Hire Charge,3601,GO PLANT FLEET SERVICES LIMITED,A0091600,04/05/2023,OPS0333538,3540.62,N,,N,N
Pendle Borough Council,Operational Services,Transport Related Expense,Tprt : Annual Hire Charge,3601,GO PLANT FLEET SERVICES LIMITED,A0091600,04/05/2023,OPS0333538,3540.62,N,,N,N
Pendle Borough Council,Operational Services,Transport Related Expense,Tprt : Annual Hire Charge,3601,GO PLANT FLEET SERVICES LIMITED,A0091600,04/05/2023,OPS0333538,3549.74,N,,N,N
Pendle Borough Council,Operational Services,Transport Related Expense,Tprt : Annual Hire Charge,3601,GO PLANT FLEET SERVICES LIMITED,A0091600,04/05/2023,OPS0333538,3549.74,N,,N,N
Pendle Borough Council,Operational Services,Transport Related Expense,Tprt : Annual Hire Charge,3601,GO PLANT FLEET SERVICES LIMITED,A0091600,04/05/2023,OPS0333538,3549.74,N,,N,N
Pendle Borough Council,Operational Services,Transport Related Expense,Tprt : Annual Hire Charge,3601,GO PLANT FLEET SERVICES LIMITED,A0091600,04/05/2023,OPS0333538,3497.07,N,,N,N
Pendle Borough Council,Operational Services,Transport Related Expense,Tprt : Annual Hire Charge,3601,GO PLANT FLEET SERVICES LIMITED,A0091600,04/05/2023,OPS0333538,3393,N,,N,N
Pendle Borough Council,Operational Services,Transport Related Expense,Tprt : Annual Hire Charge,3601,GO PLANT FLEET SERVICES LIMITED,A0091600,04/05/2023,OPS0333538,2654.17,N,,N,N
Pendle Borough Council,Operational Services,Transport Related Expense,Tprt : Annual Hire Charge,3601,GO PLANT FLEET SERVICES LIMITED,A0091600,04/05/2023,OPS0333538,1981.53,N,,N,N
Pendle Borough Council,Operational Services,Transport Related Expense,Tprt : Annual Hire Charge,3601,GO PLANT FLEET SERVICES LIMITED,A0091600,04/05/2023,OPS0333538,1981.53,N,,N,N
Pendle Borough Council,Operational Services,Transport Related Expense,Tprt : Annual Hire Charge,3601,GO PLANT FLEET SERVICES LIMITED,A0091600,04/05/2023,OPS0333538,1981.53,N,,N,N
Pendle Borough Council,Operational Services,Transport Related Expense,Tprt : Annual Hire Charge,3601,GO PLANT FLEET SERVICES LIMITED,A0091600,04/05/2023,OPS0333538,1981.53,N,,N,N
Pendle Borough Council,Operational Services,Transport Related Expense,Tprt : Annual Hire Charge,3601,GO PLANT FLEET SERVICES LIMITED,A0091600,04/05/2023,OPS0333538,1981.53,N,,N,N
Pendle Borough Council,Operational Services,Transport Related Expense,Tprt : Annual Hire Charge,3601,GO PLANT FLEET SERVICES LIMITED,A0091600,04/05/2023,OPS0333538,509.54,N,,N,N
Pendle Borough Council,Operational Services,Transport Related Expense,Tprt : Annual Hire Charge,3601,GO PLANT FLEET SERVICES LIMITED,A0091600,04/05/2023,OPS0333538,598.81,N,,N,N
Pendle Borough Council,Operational Services,Transport Related Expense,Tprt : Annual Hire Charge,3601,GO PLANT FLEET SERVICES LIMITED,A0091600,04/05/2023,OPS0333538,650,N,,N,N
Pendle Borough Council,Operational Services,Transport Related Expense,Tprt : Annual Hire Charge,3601,GO PLANT FLEET SERVICES LIMITED,A0091600,04/05/2023,OPS0333538,598.81,N,,N,N
Pendle Borough Council,Operational Services,Transport Related Expense,Tprt : Annual Hire Charge,3601,GO PLANT FLEET SERVICES LIMITED,A0091600,04/05/2023,OPS0333538,598.81,N,,N,N
Pendle Borough Council,Operational Services,Transport Related Expense,Tprt : Annual Hire Charge,3601,GO PLANT FLEET SERVICES LIMITED,A0091600,04/05/2023,OPS0333538,650,N,,N,N
Pendle Borough Council,Operational Services,Transport Related Expense,Tprt : Annual Hire Charge,3601,GO PLANT FLEET SERVICES LIMITED,A0091600,04/05/2023,OPS0333538,598.81,N,,N,N
Pendle Borough Council,Operational Services,Transport Related Expense,Tprt : Annual Hire Charge,3601,GO PLANT FLEET SERVICES LIMITED,A0091600,04/05/2023,OPS0333538,239.53,N,,N,N
Pendle Borough Council,Operational Services,Transport Related Expense,Tprt : Annual Hire Charge,3601,GO PLANT FLEET SERVICES LIMITED,A0091600,04/05/2023,OPS0333538,239.53,N,,N,N
Pendle Borough Council,Operational Services,Transport Related Expense,Tprt : Annual Hire Charge,3601,GO PLANT FLEET SERVICES LIMITED,A0091600,04/05/2023,OPS0333538,239.53,N,,N,N
Pendle Borough Council,Operational Services,Transport Related Expense,Tprt : Annual Hire Charge,3601,GO PLANT FLEET SERVICES LIMITED,A0091600,04/05/2023,OPS0333538,239.53,N,,N,N
Pendle Borough Council,Operational Services,Transport Related Expense,Tprt : Annual Hire Charge,3601,GO PLANT FLEET SERVICES LIMITED,A0091600,04/05/2023,OPS0333538,239.53,N,,N,N
Pendle Borough Council,Operational Services,Transport Related Expense,Tprt : Annual Hire Charge,3601,GO PLANT FLEET SERVICES LIMITED,A0091600,04/05/2023,OPS0333538,239.53,N,,N,N
Pendle Borough Council,Operational Services,Transport Related Expense,Tprt : Annual Hire Charge,3601,GO PLANT FLEET SERVICES LIMITED,A0091600,04/05/2023,OPS0333538,239.53,N,,N,N
Pendle Borough Council,Operational Services,Transport Related Expense,Tprt : Annual Hire Charge,3601,GO PLANT FLEET SERVICES LIMITED,A0091600,04/05/2023,OPS0333538,339.69,N,,N,N
Pendle Borough Council,Operational Services,Transport Related Expense,Tprt : Annual Hire Charge,3601,GO PLANT FLEET SERVICES LIMITED,A0091600,04/05/2023,OPS0333538,592.28,N,,N,N
Pendle Borough Council,Operational Services,Transport Related Expense,Tprt : Annual Hire Charge,3601,GO PLANT FLEET SERVICES LIMITED,A0091600,04/05/2023,OPS0333538,592.28,N,,N,N
Pendle Borough Council,Operational Services,Transport Related Expense,Tprt : Annual Hire Charge,3601,GO PLANT FLEET SERVICES LIMITED,A0091600,04/05/2023,OPS0333538,592.28,N,,N,N
Pendle Borough Council,Operational Services,Transport Related Expense,Tprt : Annual Hire Charge,3601,GO PLANT FLEET SERVICES LIMITED,A0091600,04/05/2023,OPS0333538,592.28,N,,N,N
Pendle Borough Council,Operational Services,Transport Related Expense,Tprt : Annual Hire Charge,3601,GO PLANT FLEET SERVICES LIMITED,A0091600,04/05/2023,OPS0333538,592.28,N,,N,N
Pendle Borough Council,Operational Services,Transport Related Expense,Tprt : Annual Hire Charge,3601,GO PLANT FLEET SERVICES LIMITED,A0091600,04/05/2023,OPS0333538,535.67,N,,N,N
Pendle Borough Council,Operational Services,Transport Related Expense,Tprt : Annual Hire Charge,3601,GO PLANT FLEET SERVICES LIMITED,A0091600,04/05/2023,OPS0333538,239.53,N,,N,N
Pendle Borough Council,Operational Services,Transport Related Expense,Tprt : Annual Hire Charge,3601,GO PLANT FLEET SERVICES LIMITED,A0091600,04/05/2023,OPS0333538,496.4,N,,N,N
Pendle Borough Council,Operational Services,Transport Related Expense,Tprt : Annual Hire Charge,3601,GO PLANT FLEET SERVICES LIMITED,A0091600,04/05/2023,OPS0333538,496.4,N,,N,N
Pendle Borough Council,Engineering & Special Projects,Premises Related Expense,Bldgs : R & M : Day To Day,2001,A&G LANDSCAPES & GROUNDWORKS LIMITED,A0091675,24/05/2023,HED0334041,715,N,,N,N
Pendle Borough Council,Engineering & Special Projects,Premises Related Expense,Bldgs : R & M : Day To Day,2001,A&G LANDSCAPES & GROUNDWORKS LIMITED,A0091675,24/05/2023,HED0334041,1000,N,,N,N
Pendle Borough Council,Parks & Recreation Services,Premises Related Expense,Grounds : R & M : Day to Day : Routine,2101,A&G LANDSCAPES & GROUNDWORKS LIMITED,A0091675,04/05/2023,PCO0333509,210,N,,N,N
Pendle Borough Council,Parks & Recreation Services,Premises Related Expense,Grounds : R & M : Day to Day : Routine,2101,A&G LANDSCAPES & GROUNDWORKS LIMITED,A0091675,04/05/2023,PCO0333509,250,N,,N,N
Pendle Borough Council,Engineering & Special Projects,Premises Related Expense,Grounds : R & M : Day to Day : Routine,2101,A&G LANDSCAPES & GROUNDWORKS LIMITED,A0091675,18/05/2023,HED0333888,720,N,,N,N
Pendle Borough Council,Parks & Recreation Services,Supplies and Services,Other Expenses,4705,A&G LANDSCAPES & GROUNDWORKS LIMITED,A0091675,04/05/2023,PCO0333510,40,N,,N,N
Pendle Borough Council,Parks & Recreation Services,Supplies and Services,Other Expenses,4705,A&G LANDSCAPES & GROUNDWORKS LIMITED,A0091675,04/05/2023,PCO0333510,250,N,,N,N
Pendle Borough Council,Parks & Recreation Services,Capital Costs,Capital : Payments,CD14,A&G LANDSCAPES & GROUNDWORKS LIMITED,A0091675,18/05/2023,PCO0333883,1000,N,,N,N
Pendle Borough Council,Parks & Recreation Services,Capital Costs,Capital : Payments,CD14,A&G LANDSCAPES & GROUNDWORKS LIMITED,A0091675,18/05/2023,PCO0333883,3260,N,,N,N
Pendle Borough Council,Engineering & Special Projects,,Paid in the Year,pd03,A&G LANDSCAPES & GROUNDWORKS LIMITED,A0091675,11/05/2023,HED0333667,1000,N,,N,N
Pendle Borough Council,Engineering & Special Projects,,Paid in the Year,PD03,A&G LANDSCAPES & GROUNDWORKS LIMITED,A0091675,11/05/2023,HED0333667,7671.55,N,,N,N
Pendle Borough Council,Parks & Recreation Services,Agency Staff,Emp : Agency Wages,1004,THE BEST CONNECTION GROUP LIMITED,A0091729,04/05/2023,PCO0333519,34.29,N,,N,N
Pendle Borough Council,Parks & Recreation Services,Agency Staff,Emp : Agency Wages,1004,THE BEST CONNECTION GROUP LIMITED,A0091729,18/05/2023,PCO0333875,45.72,N,,N,N
Pendle Borough Council,Parks & Recreation Services,Agency Staff,Emp : Agency Wages,1004,THE BEST CONNECTION GROUP LIMITED,A0091729,04/05/2023,PCO0333523,60.96,N,,N,N
Pendle Borough Council,Parks & Recreation Services,Agency Staff,Emp : Agency Wages,1004,THE BEST CONNECTION GROUP LIMITED,A0091729,18/05/2023,PCO0333722,118.11,N,,N,N
Pendle Borough Council,Parks & Recreation Services,Agency Staff,Emp : Agency Wages,1004,THE BEST CONNECTION GROUP LIMITED,A0091729,04/05/2023,PCO0333466,137.16,N,,N,N
Pendle Borough Council,Information Services,Supplies and Services,Other Expenses,4705,ESRI (UK) LIMITED,A0091766,04/05/2023,ITS0333539,-680,N,,N,N
Pendle Borough Council,Information Services,Supplies and Services,Other Expenses,4705,ESRI (UK) LIMITED,A0091766,04/05/2023,ITS0333539,680,N,,N,N
Pendle Borough Council,Engineering & Special Projects,Agency Staff,Emp : Agency Wages,1004,THE OYSTER PARTNERSHIP LIMITED,A0091781,18/05/2023,HED0333734,1257.75,N,,N,N
Pendle Borough Council,Engineering & Special Projects,Agency Staff,Emp : Agency Wages,1004,THE OYSTER PARTNERSHIP LIMITED,A0091781,04/05/2023,HED0333490,1496.5,N,,N,N
Pendle Borough Council,Engineering & Special Projects,Agency Staff,Emp : Agency Wages,1004,THE OYSTER PARTNERSHIP LIMITED,A0091781,11/05/2023,HED0333638,1564.44,N,,N,N
Pendle Borough Council,Engineering & Special Projects,Agency Staff,Emp : Agency Wages,1004,THE OYSTER PARTNERSHIP LIMITED,A0091781,24/05/2023,HED0334021,1247,N,,N,N
Pendle Borough Council,Engineering & Special Projects,Supplies and Services,Other Expenses,4705,ROUGHLEE BOOTH PARISH COUNCIL,A0091815,11/05/2023,HED0333662,2800,N,,N,N
Pendle Borough Council,Property Services,Premises Related Expense,Water & Sewerage,2501,BUSINESS STREAM,A0091916,18/05/2023,EST0333916,13.04,N,,N,N
Pendle Borough Council,Property Services,Premises Related Expense,Water & Sewerage,2501,BUSINESS STREAM,A0091916,24/05/2023,EST0334078,702.42,N,,N,N
Pendle Borough Council,Property Services,Premises Related Expense,Water & Sewerage,2501,BUSINESS STREAM,A0091916,24/05/2023,EST0334079,834.37,N,,N,N
Pendle Borough Council,Operational Services,,Stock : Purchases,PJ01,SMI GROUP UK,A0091999,24/05/2023,OPS0334038,59.64,N,,N,N
Pendle Borough Council,Human Resources,Indirect Employee Expenses,Emp : Medical Expenses,1236,SHARP PHYSIOTHERAPY LIMITED,A0092384,24/05/2023,PER0333989,170,N,,N,N
Pendle Borough Council,Engineering & Special Projects,Supplies and Services,Children`s holiday activities,4716,THE LIGHTBEAM ACADEMY LTD,A0092431,04/05/2023,HED0333478,1554,N,,N,N
Pendle Borough Council,Engineering & Special Projects,Supplies and Services,Children`s holiday activities,4716,IN SITU IN PLACE,A0092892,04/05/2023,HED0333491,5308.14,N,,N,N
Pendle Borough Council,Engineering & Special Projects,Supplies and Services,Children`s holiday activities,4716,SMARTYPANTS EXCLUSIVE CHILDCARE,A0093288,04/05/2023,HED0333494,371.2,N,,N,N
Pendle Borough Council,Parks & Recreation Services,Supplies and Services,Expenditure : Materials,0002,TURFIX PITCH SOLUTIONS,A0094206,24/05/2023,PCO0334068,1673.5,N,,N,N
Pendle Borough Council,Revenues Services,Supplies and Services,DSS Collection Fee,4414,MARSTON (HOLDINGS) LIMITED,A0094273,11/05/2023,TRE0333676,18.09,N,,N,N
Pendle Borough Council,Revenues Services,Supplies and Services,DSS Collection Fee,4414,MARSTON (HOLDINGS) LIMITED,A0094273,24/05/2023,TRE0334094,100.56,N,,N,N
Pendle Borough Council,Revenues Services,Supplies and Services,DSS Collection Fee,4414,MARSTON (HOLDINGS) LIMITED,A0094273,24/05/2023,TRE0334093,273.42,N,,N,N
Pendle Borough Council,Engineering & Special Projects,Capital Costs,Ren Grant : 1996 Act,ch22,SOUTHFIELD CONSTRUCTION,A0094294,04/05/2023,HED0333488,175,N,,N,N
Pendle Borough Council,Engineering & Special Projects,Capital Costs,Ren Grant : 1996 Act,CH22,SOUTHFIELD CONSTRUCTION,A0094294,24/05/2023,HED0334016,4968.02,N,,N,N
Pendle Borough Council,Engineering & Special Projects,Supplies and Services,Subscriptions & Donations,4706,LGCOMMS,A0094488,18/05/2023,HED0333921,250,N,,N,N
Pendle Borough Council,Democratic & Legal Services,Premises Related Expense,Rents,2301,FOULRIDGE VILLAGE HALL COMMITTEE,A0094657,11/05/2023,DAL0333592,100,N,,N,N
Pendle Borough Council,Engineering & Special Projects,Supplies and Services,Other Expenses,4705,REDACT - PERSONAL DATA,A0094686,18/05/2023,HED0333867,79.43,N,,N,N
Pendle Borough Council,Engineering & Special Projects,Supplies and Services,Children`s holiday activities,4716,BODIES IN MOTION PENDLE LTD,A0095079,18/05/2023,HED0333878,520,N,,N,N
Pendle Borough Council,Planning & Building Control,Capital Costs,Capital : Payments,CD14,AGENDA BOXES & PACKAGING LTD,A0095089,24/05/2023,PBC0333986,32088.78,N,,N,N
Pendle Borough Council,Parks & Recreation Services,Premises Related Expense,Grounds : R & M : Day to Day : Routine,2101,JAMES CROPPER,A0095244,18/05/2023,PCO0333726,600,N,,N,N
Pendle Borough Council,Democratic & Legal Services,Premises Related Expense,Rents,2301,BRADLEY BIG LOCAL COMMUNITY LAND TRUST LIMITED,A0095541,11/05/2023,DAL0333590,150,N,,N,N
Pendle Borough Council,Planning & Building Control,Supplies and Services,Grant Funding,4737,COLNE YOUTH ACTION GROUP,A0096017,04/05/2023,PBC0333529,25438.8,N,,N,N
Pendle Borough Council,Planning & Building Control,Capital Costs,Capital : Payments,CD14,COLNE YOUTH ACTION GROUP,A0096017,04/05/2023,PBC0333529,15088.32,N,,N,N
Pendle Borough Council,Engineering & Special Projects,Supplies and Services,Children`s holiday activities,4716,FUNDA,A0096411,04/05/2023,HED0333479,8800,N,,N,N
Pendle Borough Council,Engineering & Special Projects,Supplies and Services,Children`s holiday activities,4716,HARRINGTONS LEARNING CENTRE,A0096412,04/05/2023,HED0333492,4320,N,,N,N
Pendle Borough Council,Engineering & Special Projects,Supplies and Services,Children`s holiday activities,4716,STAGE DOOR,A0096413,11/05/2023,HED0333636,96,N,,N,N
Pendle Borough Council,Engineering & Special Projects,Supplies and Services,Children`s holiday activities,4716,FUN-ATICS LTD,A0096414,04/05/2023,HED0333475,3528,N,,N,N
Pendle Borough Council,Engineering & Special Projects,Transfer Payments,Accommodation ,6103,REGENT GUEST HOUSE,A0096417,24/05/2023,HED0333992,770,N,,N,N
Pendle Borough Council,Engineering & Special Projects,Transfer Payments,Accommodation ,6103,REGENT GUEST HOUSE,A0096417,24/05/2023,HED0333993,1190,N,,N,N
Pendle Borough Council,Engineering & Special Projects,Transfer Payments,Accommodation ,6103,REGENT GUEST HOUSE,A0096417,24/05/2023,HED0333991,3920,N,,N,N
Pendle Borough Council,Parks & Recreation Services,Premises Related Expense,Grounds : R & M : Day to Day : Routine,2101,ABC CLEANING SERVICES (NORTH WEST) LIMITED,A0096473,04/05/2023,PCO0333467,1025,N,,N,N
Pendle Borough Council,Parks & Recreation Services,Premises Related Expense,Grounds : R & M : Day to Day : Routine,2101,ABC CLEANING SERVICES (NORTH WEST) LIMITED,A0096473,04/05/2023,PCO0333467,600,N,,N,N
Pendle Borough Council,Parks & Recreation Services,Indirect Employee Expenses,Training,1211,R HEWITT LTD,A0096478,24/05/2023,PCO0334067,50,N,,N,N
Pendle Borough Council,Parks & Recreation Services,Premises Related Expense,Bldgs : R & M : Day To Day,2001,COLYER REPROPOINT,A0096484,04/05/2023,PCO0333469,238.85,N,,N,N
Pendle Borough Council,Parks & Recreation Services,Premises Related Expense,Grounds : R & M : Day to Day : Routine,2101,JMB SERVICES,A0096485,04/05/2023,PCO0333524,625,N,,N,N
Pendle Borough Council,Parks & Recreation Services,Premises Related Expense,Grounds : R & M : Day to Day : Routine,2101,JMB SERVICES,A0096485,04/05/2023,PCO0333525,1375,N,,N,N
Pendle Borough Council,Parks & Recreation Services,Premises Related Expense,Grounds : R & M : Day to Day : Routine,2101,ROSSENDALE PLASTICS,A0096495,24/05/2023,PCO0334062,12,N,,N,N
Pendle Borough Council,Engineering & Special Projects,Capital Costs,Ren Grant : 1996 Act,CH22,REDACT - PERSONAL DATA,A0096505,24/05/2023,HED0334030,5759.93,N,,N,N
Pendle Borough Council,Parks & Recreation Services,Premises Related Expense,Grounds : R & M : Day to Day : Routine,2101,BANNISTER HALL LIMITED,A0096507,18/05/2023,PCO0333863,136,N,,N,N
Pendle Borough Council,Engineering & Special Projects,,Fees Income : VATable,9202,INFOTRACK PROPERTY SERVICES,A0096508,18/05/2023,HED0333880,49.75,N,,N,N
Pendle Borough Council,Property Services,Premises Related Expense,Bldgs : R & M : Day To Day,2001,BEN SLATER GLAZING,A0096554,18/05/2023,EST0333917,1020,N,,N,N
Pendle Borough Council,Engineering & Special Projects,Supplies and Services,Consultants Fees,4401,JJG CONSULTANCY & EXECUTIVE COACHING SERVICES LTD,A0096573,11/05/2023,HED0333675,2250,N,,N,N
Pendle Borough Council,Engineering & Special Projects,Supplies and Services,Seminars etc All Costs,4601,JJG CONSULTANCY & EXECUTIVE COACHING SERVICES LTD,A0096573,11/05/2023,HED0333674,230,N,,N,N
Pendle Borough Council,Engineering & Special Projects,Supplies and Services,Consultants Fees,4401,MRS R M ASHWORTH MARSDEN PARK CAFE,A0096605,24/05/2023,HED0334015,162.5,N,,N,N
Pendle Borough Council,Operational Services,Capital Costs,Capital : Payments,CD14,IC2 DISTRIBUTION LIMITED,A0096611,24/05/2023,OPS0334032,3815,N,,N,N
Pendle Borough Council,Engineering & Special Projects,Supplies and Services,Children`s holiday activities,4716,ABSOLUTE FUTBOL LTD,A0096761,04/05/2023,HED0333476,1120,N,,N,N
Pendle Borough Council,Parks & Recreation Services,Transport Related Expense,Diesel Oil,3202,NWF FUELS,A0096773,18/05/2023,PCO0333884,2130,N,,N,N
Pendle Borough Council,Engineering & Special Projects,Supplies and Services,Consultants Fees,4401,GROWTH LANCASHIRE LIMITED,A0096774,04/05/2023,HED0333495,1870.6,N,,N,N
Pendle Borough Council,Financial Services,Supplies and Services,Grant Funding,4737,REDACT - PERSONAL DATA,A0096806,04/05/2023,AAS0333549,350,N,,N,N
Pendle Borough Council,Financial Services,Supplies and Services,Grant Funding,4737,REDACT - PERSONAL DATA,A0096808,04/05/2023,AAS0333553,350,N,,N,N
Pendle Borough Council,Financial Services,Supplies and Services,Grant Funding,4737,REDACT - PERSONAL DATA,A0096810,04/05/2023,AAS0333554,350,N,,N,N
Pendle Borough Council,Financial Services,Supplies and Services,Grant Funding,4737,REDACT - PERSONAL DATA,A0096819,04/05/2023,AAS0333555,350,N,,N,N
Pendle Borough Council,Financial Services,Supplies and Services,Grant Funding,4737,REDACT - PERSONAL DATA,A0096823,04/05/2023,AAS0333551,350,N,,N,N
Pendle Borough Council,Operational Services,Supplies and Services,Sub-Contractors,4007,WHITLEY BROOK PET CREMATORIUM,A0096827,04/05/2023,OPS0333458,162.5,N,,N,N
Pendle Borough Council,Operational Services,Supplies and Services,Sub-Contractors,4007,WHITLEY BROOK PET CREMATORIUM,A0096827,11/05/2023,OPS0333641,197.85,N,,N,N
Pendle Borough Council,Financial Services,Supplies and Services,Grant Funding,4737,REDACT - PERSONAL DATA,A0096834,04/05/2023,AAS0333550,350,N,,N,N
Pendle Borough Council,Engineering & Special Projects,Supplies and Services,Miscellaneous : Other,4707,ANDREW ASHCROFT PLANNING LTD,A0096835,11/05/2023,HED0333658,8902.54,N,,N,N
Pendle Borough Council,Operational Services,,Stock : Purchases,PJ01,C R SAFETY AND CONSUMABLES SUPPLIES LTD,A0096836,24/05/2023,OPS0334037,99.7,N,,N,N
Pendle Borough Council,Financial Services,Supplies and Services,Other Expenses,4705,POST OFFICE LTD,A0096844,04/05/2023,AAS0333567,938.3,N,,N,N
Pendle Borough Council,Financial Services,Supplies and Services,Grant Funding,4737,REDACT - PERSONAL DATA,A0096858,04/05/2023,AAS0333556,350,N,,N,N
Pendle Borough Council,Financial Services,Supplies and Services,Grant Funding,4737,REDACT - PERSONAL DATA,A0096863,04/05/2023,AAS0333552,350,N,,N,N
Pendle Borough Council,Financial Services,Supplies and Services,Grant Funding,4737,REDACT - PERSONAL DATA,A0096866,04/05/2023,AAS0333557,350,N,,N,N
Pendle Borough Council,Financial Services,Supplies and Services,Grant Funding,4737,REDACT - PERSONAL DATA,A0096872,04/05/2023,AAS0333558,350,N,,N,N
Pendle Borough Council,Engineering & Special Projects,Supplies and Services,Other Expenses,4705,HOUSING OMBUDSMAN SERVICE,A0096885,11/05/2023,HED0333660,17.25,N,,N,N
Pendle Borough Council,Engineering & Special Projects,Supplies and Services,Other Expenses,4705,ICENI PROJECTS,A0096892,04/05/2023,HED0333481,18150.83,N,,N,N
Pendle Borough Council,Financial Services,Supplies and Services,Grant Funding,4737,REDACT - PERSONAL DATA,A0096893,04/05/2023,AAS0333559,350,N,,N,N
Pendle Borough Council,Financial Services,Supplies and Services,Grant Funding,4737,REDACT - PERSONAL DATA,A0096910,04/05/2023,AAS0333562,350,N,,N,N
Pendle Borough Council,Financial Services,Supplies and Services,Grant Funding,4737,REDACT - PERSONAL DATA,A0096912,04/05/2023,AAS0333560,350,N,,N,N
Pendle Borough Council,Financial Services,Supplies and Services,Grant Funding,4737,REDACT - PERSONAL DATA,A0096916,04/05/2023,AAS0333561,350,N,,N,N
Pendle Borough Council,Financial Services,Supplies and Services,Consultants Fees,4401,"KNIGHT, KAVANAGH & PAGE LTD",A0096924,18/05/2023,AAS0333932,8715,N,,N,N
Pendle Borough Council,Parks & Recreation Services,,Paid in the Year,PD03,"KNIGHT, KAVANAGH & PAGE LTD",A0096924,24/05/2023,PCO0334065,8062.5,N,,N,N
Pendle Borough Council,Property Services,Capital Costs,Capital : Payments,CD14,BUILDING TECHNOLOGY SYSTEMS LTD,A0096928,11/05/2023,EST0333542,26238,N,,N,N
Pendle Borough Council,Engineering & Special Projects,Supplies and Services,Other Expenses,4705,GREAT PLACES HOUSING GROUP,A0096937,18/05/2023,HED0333758,91.14,N,,N,N
Pendle Borough Council,Operational Services,Capital Costs,Capital : Payments,CD14,THE CDS GROUP,A0096940,04/05/2023,OPS0333508,350,N,,N,N
Pendle Borough Council,Operational Services,Capital Costs,Capital : Payments,CD14,THE CDS GROUP,A0096940,04/05/2023,OPS0333508,400,N,,N,N
Pendle Borough Council,Operational Services,Capital Costs,Capital : Payments,CD14,THE CDS GROUP,A0096940,04/05/2023,OPS0333508,750,N,,N,N
Pendle Borough Council,Operational Services,Capital Costs,Capital : Payments,CD14,THE CDS GROUP,A0096940,04/05/2023,OPS0333508,1200,N,,N,N
Pendle Borough Council,Operational Services,Capital Costs,Capital : Payments,CD14,THE CDS GROUP,A0096940,04/05/2023,OPS0333508,1250,N,,N,N
Pendle Borough Council,Financial Services,Supplies and Services,Grant Funding,4737,REDACT - PERSONAL DATA,A0096978,04/05/2023,AAS0333563,350,N,,N,N
Pendle Borough Council,Financial Services,Supplies and Services,Grant Funding,4737,REDACT - PERSONAL DATA,A0096980,04/05/2023,AAS0333564,350,N,,N,N
Pendle Borough Council,Engineering & Special Projects,Supplies and Services,Consultants Fees,4401,CMS CAMERON MCKENNA NABARRO OLSWANG LLP,A0096983,24/05/2023,HED0334012,1500,N,,N,N
Pendle Borough Council,Engineering & Special Projects,Capital Costs,Ren Grant : 1996 Act,CH22,T SALISBURY JOINER & BUILDER,A0096984,04/05/2023,HED0333477,14668.6,N,,N,N
Pendle Borough Council,Engineering & Special Projects,Capital Costs,Capital : Payments,CD14,IPOWER NORTHWEST LTD,A0097001,04/05/2023,HED0333537,3347.89,N,,N,N
Pendle Borough Council,Financial Services,Supplies and Services,Grant Funding,4737,REDACT - PERSONAL DATA,A0097003,04/05/2023,AAS0333566,350,N,,N,N
Pendle Borough Council,Financial Services,Supplies and Services,Grant Funding,4737,REDACT - PERSONAL DATA,A0097008,04/05/2023,AAS0333565,350,N,,N,N
Pendle Borough Council,Engineering & Special Projects,Supplies and Services,Consultants Fees,4401,RAISE PARTNERSHIP LTD,A0097017,18/05/2023,HED0333894,635.4,N,,N,N
Pendle Borough Council,Engineering & Special Projects,Supplies and Services,Consultants Fees,4401,RAISE PARTNERSHIP LTD,A0097017,18/05/2023,HED0333893,8016.67,N,,N,N
Pendle Borough Council,Parks & Recreation Services,Transport Related Expense,Tprt : Repairs : General,3105,SIXIS Technology Ltd,A0097018,04/05/2023,PCO0333517,458.8,N,,N,N
Pendle Borough Council,Operational Services,,Fees Income : Non-VATable,9302,REDACT - PERSONAL DATA,A0097036,11/05/2023,OPS0333699,37,N,,N,N
Pendle Borough Council,Operational Services,Supplies and Services,Other Expenses,4705,COLOUR IDEA LIMITED,A0097168,11/05/2023,OPS0333640,0,N,,N,N
Pendle Borough Council,Operational Services,Supplies and Services,Other Expenses,4705,COLOUR IDEA LIMITED,A0097168,11/05/2023,OPS0333640,10,N,,N,N
Pendle Borough Council,Operational Services,Supplies and Services,Other Expenses,4705,COLOUR IDEA LIMITED,A0097168,11/05/2023,OPS0333640,249.92,N,,N,N
Pendle Borough Council,Operational Services,Supplies and Services,Other Expenses,4705,COLOUR IDEA LIMITED,A0097168,11/05/2023,OPS0333640,283.33,N,,N,N
Pendle Borough Council,Operational Services,Supplies and Services,Other Expenses,4705,COLOUR IDEA LIMITED,A0097168,11/05/2023,OPS0333640,687.46,N,,N,N
Pendle Borough Council,Engineering & Special Projects,Supplies and Services,Children`s holiday activities,4716,JAM CODING PENDLE,A0097169,04/05/2023,HED0333499,3600,N,,N,N
Pendle Borough Council,Engineering & Special Projects,Supplies and Services,Children`s holiday activities,4716,PLAY AND LEARN SCHEME CIC,A0097170,24/05/2023,HED0334011,2880,N,,N,N
Pendle Borough Council,Engineering & Special Projects,Supplies and Services,Children`s holiday activities,4716,PLAY AND LEARN SCHEME CIC,A0097170,04/05/2023,HED0333532,5120,N,,N,N
Pendle Borough Council,Parks & Recreation Services,Premises Related Expense,Grounds : R & M : Day to Day : Routine,2101,CJB GARDEN & TREE CARE,A0097171,18/05/2023,PCO0333866,280,N,,N,N
Pendle Borough Council,Engineering & Special Projects,Supplies and Services,Other Expenses,4705,BLACKBURN LETTINGS,A0097172,04/05/2023,HED0333541,800,N,,N,N
Pendle Borough Council,Financial Services,Capital Costs,Capital: Design Fees,CD53,DCR SURVEYING AND ESTIMATING SERVICES LTD,A0097173,04/05/2023,AAS0333576,600,N,,N,N
Pendle Borough Council,Engineering & Special Projects,Supplies and Services,Other Expenses,4705,REDACT - PERSONAL DATA,A0097175,11/05/2023,HED0333624,1400,N,,N,N
Pendle Borough Council,Engineering & Special Projects,Premises Related Expense,Grounds : R & M : Day to Day : Routine,2101,REDACT - PERSONAL DATA,A0097176,24/05/2023,HED0334043,44.96,N,,N,N
Pendle Borough Council,Financial Services,Supplies and Services,Grant Funding,4737,REDACT - PERSONAL DATA,A0097178,11/05/2023,AAS0333700,400,N,,N,N
Pendle Borough Council,Financial Services,Supplies and Services,Grant Funding,4737,REDACT - PERSONAL DATA,A0097179,11/05/2023,AAS0333701,400,N,,N,N
Pendle Borough Council,Financial Services,Supplies and Services,Grant Funding,4737,REDACT - PERSONAL DATA,A0097180,11/05/2023,AAS0333702,400,N,,N,N
Pendle Borough Council,Financial Services,Supplies and Services,Grant Funding,4737,REDACT - PERSONAL DATA,A0097181,11/05/2023,AAS0333703,400,N,,N,N
Pendle Borough Council,Financial Services,Supplies and Services,Grant Funding,4737,REDACT - PERSONAL DATA,A0097182,11/05/2023,AAS0333704,400,N,,N,N
Pendle Borough Council,Financial Services,Supplies and Services,Grant Funding,4737,REDACT - PERSONAL DATA,A0097183,11/05/2023,AAS0333705,400,N,,N,N
Pendle Borough Council,Financial Services,Supplies and Services,Grant Funding,4737,REDACT - PERSONAL DATA,A0097184,11/05/2023,AAS0333706,400,N,,N,N
Pendle Borough Council,Engineering & Special Projects,Supplies and Services,Other Expenses,4705,REDACT - PERSONAL DATA,A0097185,11/05/2023,HED0333653,1130,N,,N,N
Pendle Borough Council,Human Resources,Indirect Employee Expenses,Recruitment,1221,SPACEHOUSE LIMITED,A0097186,18/05/2023,PER0333754,500,N,,N,N
Pendle Borough Council,Financial Services,Supplies and Services,Grant Funding,4737,REDACT - PERSONAL DATA,A0097187,16/05/2023,AAS0333764,200,N,,N,N
Pendle Borough Council,Financial Services,Supplies and Services,Grant Funding,4737,REDACT - PERSONAL DATA,A0097188,16/05/2023,AAS0333765,200,N,,N,N
Pendle Borough Council,Financial Services,Supplies and Services,Grant Funding,4737,REDACT - PERSONAL DATA,A0097189,16/05/2023,AAS0333766,200,N,,N,N
Pendle Borough Council,Financial Services,Supplies and Services,Grant Funding,4737,REDACT - PERSONAL DATA,A0097190,16/05/2023,AAS0333767,200,N,,N,N
Pendle Borough Council,Financial Services,Supplies and Services,Grant Funding,4737,REDACT - PERSONAL DATA,A0097191,16/05/2023,AAS0333768,200,N,,N,N
Pendle Borough Council,Financial Services,Supplies and Services,Grant Funding,4737,REDACT - PERSONAL DATA,A0097192,16/05/2023,AAS0333769,200,N,,N,N
Pendle Borough Council,Financial Services,Supplies and Services,Grant Funding,4737,REDACT - PERSONAL DATA,A0097193,16/05/2023,AAS0333770,200,N,,N,N
Pendle Borough Council,Financial Services,Supplies and Services,Grant Funding,4737,REDACT - PERSONAL DATA,A0097194,16/05/2023,AAS0333771,200,N,,N,N
Pendle Borough Council,Financial Services,Supplies and Services,Grant Funding,4737,REDACT - PERSONAL DATA,A0097195,16/05/2023,AAS0333772,200,N,,N,N
Pendle Borough Council,Financial Services,Supplies and Services,Grant Funding,4737,REDACT - PERSONAL DATA,A0097196,16/05/2023,AAS0333773,200,N,,N,N
Pendle Borough Council,Financial Services,Supplies and Services,Grant Funding,4737,REDACT - PERSONAL DATA,A0097197,16/05/2023,AAS0333774,200,N,,N,N
Pendle Borough Council,Financial Services,Supplies and Services,Grant Funding,4737,REDACT - PERSONAL DATA,A0097198,16/05/2023,AAS0333775,200,N,,N,N
Pendle Borough Council,Financial Services,Supplies and Services,Grant Funding,4737,REDACT - PERSONAL DATA,A0097199,16/05/2023,AAS0333776,200,N,,N,N
Pendle Borough Council,Financial Services,Supplies and Services,Grant Funding,4737,REDACT - PERSONAL DATA,A0097200,16/05/2023,AAS0333777,200,N,,N,N
Pendle Borough Council,Financial Services,Supplies and Services,Grant Funding,4737,REDACT - PERSONAL DATA,A0097201,16/05/2023,AAS0333778,200,N,,N,N
Pendle Borough Council,Financial Services,Supplies and Services,Grant Funding,4737,REDACT - PERSONAL DATA,A0097202,16/05/2023,AAS0333779,200,N,,N,N
Pendle Borough Council,Financial Services,Supplies and Services,Grant Funding,4737,REDACT - PERSONAL DATA,A0097203,16/05/2023,AAS0333780,200,N,,N,N
Pendle Borough Council,Financial Services,Supplies and Services,Grant Funding,4737,REDACT - PERSONAL DATA,A0097204,16/05/2023,AAS0333781,200,N,,N,N
Pendle Borough Council,Financial Services,Supplies and Services,Grant Funding,4737,REDACT - PERSONAL DATA,A0097205,16/05/2023,AAS0333782,200,N,,N,N
Pendle Borough Council,Financial Services,Supplies and Services,Grant Funding,4737,REDACT - PERSONAL DATA,A0097206,16/05/2023,AAS0333783,200,N,,N,N
Pendle Borough Council,Financial Services,Supplies and Services,Grant Funding,4737,REDACT - PERSONAL DATA,A0097207,16/05/2023,AAS0333784,200,N,,N,N
Pendle Borough Council,Financial Services,Supplies and Services,Grant Funding,4737,REDACT - PERSONAL DATA,A0097208,16/05/2023,AAS0333785,200,N,,N,N
Pendle Borough Council,Financial Services,Supplies and Services,Grant Funding,4737,REDACT - PERSONAL DATA,A0097209,16/05/2023,AAS0333786,200,N,,N,N
Pendle Borough Council,Financial Services,Supplies and Services,Grant Funding,4737,REDACT - PERSONAL DATA,A0097210,16/05/2023,AAS0333787,200,N,,N,N
Pendle Borough Council,Financial Services,Supplies and Services,Grant Funding,4737,REDACT - PERSONAL DATA,A0097211,16/05/2023,AAS0333788,200,N,,N,N
Pendle Borough Council,Financial Services,Supplies and Services,Grant Funding,4737,REDACT - PERSONAL DATA,A0097212,16/05/2023,AAS0333789,200,N,,N,N
Pendle Borough Council,Financial Services,Supplies and Services,Grant Funding,4737,REDACT - PERSONAL DATA,A0097213,16/05/2023,AAS0333790,200,N,,N,N
Pendle Borough Council,Financial Services,Supplies and Services,Grant Funding,4737,REDACT - PERSONAL DATA,A0097214,16/05/2023,AAS0333791,200,N,,N,N
Pendle Borough Council,Financial Services,Supplies and Services,Grant Funding,4737,REDACT - PERSONAL DATA,A0097215,16/05/2023,AAS0333792,200,N,,N,N
Pendle Borough Council,Financial Services,Supplies and Services,Grant Funding,4737,REDACT - PERSONAL DATA,A0097216,16/05/2023,AAS0333793,200,N,,N,N
Pendle Borough Council,Financial Services,Supplies and Services,Grant Funding,4737,REDACT - PERSONAL DATA,A0097217,16/05/2023,AAS0333794,200,N,,N,N
Pendle Borough Council,Financial Services,Supplies and Services,Grant Funding,4737,REDACT - PERSONAL DATA,A0097218,16/05/2023,AAS0333795,200,N,,N,N
Pendle Borough Council,Financial Services,Supplies and Services,Grant Funding,4737,REDACT - PERSONAL DATA,A0097219,16/05/2023,AAS0333796,200,N,,N,N
Pendle Borough Council,Financial Services,Supplies and Services,Grant Funding,4737,REDACT - PERSONAL DATA,A0097220,16/05/2023,AAS0333797,200,N,,N,N
Pendle Borough Council,Financial Services,Supplies and Services,Grant Funding,4737,REDACT - PERSONAL DATA,A0097221,16/05/2023,AAS0333798,200,N,,N,N
Pendle Borough Council,Financial Services,Supplies and Services,Grant Funding,4737,REDACT - PERSONAL DATA,A0097222,16/05/2023,AAS0333799,200,N,,N,N
Pendle Borough Council,Financial Services,Supplies and Services,Grant Funding,4737,REDACT - PERSONAL DATA,A0097223,16/05/2023,AAS0333800,200,N,,N,N
Pendle Borough Council,Financial Services,Supplies and Services,Grant Funding,4737,REDACT - PERSONAL DATA,A0097224,16/05/2023,AAS0333801,200,N,,N,N
Pendle Borough Council,Financial Services,Supplies and Services,Grant Funding,4737,REDACT - PERSONAL DATA,A0097225,16/05/2023,AAS0333802,200,N,,N,N
Pendle Borough Council,Financial Services,Supplies and Services,Grant Funding,4737,REDACT - PERSONAL DATA,A0097226,16/05/2023,AAS0333803,200,N,,N,N
Pendle Borough Council,Financial Services,Supplies and Services,Grant Funding,4737,REDACT - PERSONAL DATA,A0097227,16/05/2023,AAS0333804,200,N,,N,N
Pendle Borough Council,Financial Services,Supplies and Services,Grant Funding,4737,REDACT - PERSONAL DATA,A0097228,16/05/2023,AAS0333805,200,N,,N,N
Pendle Borough Council,Financial Services,Supplies and Services,Grant Funding,4737,REDACT - PERSONAL DATA,A0097229,16/05/2023,AAS0333806,200,N,,N,N
Pendle Borough Council,Financial Services,Supplies and Services,Grant Funding,4737,REDACT - PERSONAL DATA,A0097230,16/05/2023,AAS0333807,200,N,,N,N
Pendle Borough Council,Financial Services,Supplies and Services,Grant Funding,4737,REDACT - PERSONAL DATA,A0097231,16/05/2023,AAS0333808,200,N,,N,N
Pendle Borough Council,Financial Services,Supplies and Services,Grant Funding,4737,REDACT - PERSONAL DATA,A0097232,16/05/2023,AAS0333809,200,N,,N,N
Pendle Borough Council,Financial Services,Supplies and Services,Grant Funding,4737,REDACT - PERSONAL DATA,A0097233,16/05/2023,AAS0333810,200,N,,N,N
Pendle Borough Council,Financial Services,Supplies and Services,Grant Funding,4737,REDACT - PERSONAL DATA,A0097234,16/05/2023,AAS0333811,200,N,,N,N
Pendle Borough Council,Financial Services,Supplies and Services,Grant Funding,4737,REDACT - PERSONAL DATA,A0097235,16/05/2023,AAS0333812,200,N,,N,N
Pendle Borough Council,Financial Services,Supplies and Services,Grant Funding,4737,REDACT - PERSONAL DATA,A0097236,16/05/2023,AAS0333813,200,N,,N,N
Pendle Borough Council,Financial Services,Supplies and Services,Grant Funding,4737,REDACT - PERSONAL DATA,A0097237,16/05/2023,AAS0333814,200,N,,N,N
Pendle Borough Council,Financial Services,Supplies and Services,Grant Funding,4737,REDACT - PERSONAL DATA,A0097238,16/05/2023,AAS0333815,200,N,,N,N
Pendle Borough Council,Financial Services,Supplies and Services,Grant Funding,4737,REDACT - PERSONAL DATA,A0097239,16/05/2023,AAS0333816,200,N,,N,N
Pendle Borough Council,Financial Services,Supplies and Services,Grant Funding,4737,REDACT - PERSONAL DATA,A0097240,16/05/2023,AAS0333817,200,N,,N,N
Pendle Borough Council,Financial Services,Supplies and Services,Grant Funding,4737,REDACT - PERSONAL DATA,A0097241,16/05/2023,AAS0333818,200,N,,N,N
Pendle Borough Council,Financial Services,Supplies and Services,Grant Funding,4737,REDACT - PERSONAL DATA,A0097242,16/05/2023,AAS0333819,200,N,,N,N
Pendle Borough Council,Financial Services,Supplies and Services,Grant Funding,4737,REDACT - PERSONAL DATA,A0097243,16/05/2023,AAS0333820,200,N,,N,N
Pendle Borough Council,Financial Services,Supplies and Services,Grant Funding,4737,REDACT - PERSONAL DATA,A0097244,16/05/2023,AAS0333821,200,N,,N,N
Pendle Borough Council,Financial Services,Supplies and Services,Grant Funding,4737,REDACT - PERSONAL DATA,A0097245,16/05/2023,AAS0333822,200,N,,N,N
Pendle Borough Council,Financial Services,Supplies and Services,Grant Funding,4737,REDACT - PERSONAL DATA,A0097246,16/05/2023,AAS0333823,200,N,,N,N
Pendle Borough Council,Financial Services,Supplies and Services,Grant Funding,4737,REDACT - PERSONAL DATA,A0097247,16/05/2023,AAS0333824,200,N,,N,N
Pendle Borough Council,Financial Services,Supplies and Services,Grant Funding,4737,REDACT - PERSONAL DATA,A0097248,16/05/2023,AAS0333825,200,N,,N,N
Pendle Borough Council,Financial Services,Supplies and Services,Grant Funding,4737,REDACT - PERSONAL DATA,A0097249,16/05/2023,AAS0333826,200,N,,N,N
Pendle Borough Council,Financial Services,Supplies and Services,Grant Funding,4737,REDACT - PERSONAL DATA,A0097250,16/05/2023,AAS0333827,200,N,,N,N
Pendle Borough Council,Financial Services,Supplies and Services,Grant Funding,4737,REDACT - PERSONAL DATA,A0097251,16/05/2023,AAS0333828,200,N,,N,N
Pendle Borough Council,Financial Services,Supplies and Services,Grant Funding,4737,REDACT - PERSONAL DATA,A0097252,16/05/2023,AAS0333829,200,N,,N,N
Pendle Borough Council,Financial Services,Supplies and Services,Grant Funding,4737,REDACT - PERSONAL DATA,A0097253,16/05/2023,AAS0333830,200,N,,N,N
Pendle Borough Council,Financial Services,Supplies and Services,Grant Funding,4737,REDACT - PERSONAL DATA,A0097254,16/05/2023,AAS0333831,200,N,,N,N
Pendle Borough Council,Financial Services,Supplies and Services,Grant Funding,4737,REDACT - PERSONAL DATA,A0097255,16/05/2023,AAS0333832,200,N,,N,N
Pendle Borough Council,Financial Services,Supplies and Services,Grant Funding,4737,REDACT - PERSONAL DATA,A0097256,16/05/2023,AAS0333833,200,N,,N,N
Pendle Borough Council,Financial Services,Supplies and Services,Grant Funding,4737,REDACT - PERSONAL DATA,A0097257,16/05/2023,AAS0333834,200,N,,N,N
Pendle Borough Council,Financial Services,Supplies and Services,Grant Funding,4737,REDACT - PERSONAL DATA,A0097258,16/05/2023,AAS0333835,200,N,,N,N
Pendle Borough Council,Financial Services,Supplies and Services,Grant Funding,4737,REDACT - PERSONAL DATA,A0097259,16/05/2023,AAS0333836,200,N,,N,N
Pendle Borough Council,Financial Services,Supplies and Services,Grant Funding,4737,REDACT - PERSONAL DATA,A0097260,16/05/2023,AAS0333837,200,N,,N,N
Pendle Borough Council,Financial Services,Supplies and Services,Grant Funding,4737,REDACT - PERSONAL DATA,A0097261,16/05/2023,AAS0333838,200,N,,N,N
Pendle Borough Council,Financial Services,Supplies and Services,Grant Funding,4737,REDACT - PERSONAL DATA,A0097262,16/05/2023,AAS0333839,200,N,,N,N
Pendle Borough Council,Financial Services,Supplies and Services,Grant Funding,4737,REDACT - PERSONAL DATA,A0097263,16/05/2023,AAS0333840,200,N,,N,N
Pendle Borough Council,Financial Services,Supplies and Services,Grant Funding,4737,REDACT - PERSONAL DATA,A0097264,16/05/2023,AAS0333841,200,N,,N,N
Pendle Borough Council,Financial Services,Supplies and Services,Grant Funding,4737,REDACT - PERSONAL DATA,A0097265,16/05/2023,AAS0333842,200,N,,N,N
Pendle Borough Council,Financial Services,Supplies and Services,Grant Funding,4737,REDACT - PERSONAL DATA,A0097266,16/05/2023,AAS0333843,200,N,,N,N
Pendle Borough Council,Financial Services,Supplies and Services,Grant Funding,4737,REDACT - PERSONAL DATA,A0097267,16/05/2023,AAS0333844,200,N,,N,N
Pendle Borough Council,Financial Services,Supplies and Services,Grant Funding,4737,REDACT - PERSONAL DATA,A0097268,16/05/2023,AAS0333845,200,N,,N,N
Pendle Borough Council,Financial Services,Supplies and Services,Grant Funding,4737,REDACT - PERSONAL DATA,A0097269,16/05/2023,AAS0333846,200,N,,N,N
Pendle Borough Council,Financial Services,Supplies and Services,Grant Funding,4737,REDACT - PERSONAL DATA,A0097270,16/05/2023,AAS0333847,200,N,,N,N
Pendle Borough Council,Financial Services,Supplies and Services,Grant Funding,4737,REDACT - PERSONAL DATA,A0097271,16/05/2023,AAS0333848,200,N,,N,N
Pendle Borough Council,Financial Services,Supplies and Services,Grant Funding,4737,REDACT - PERSONAL DATA,A0097272,16/05/2023,AAS0333849,200,N,,N,N
Pendle Borough Council,Financial Services,Supplies and Services,Grant Funding,4737,REDACT - PERSONAL DATA,A0097273,16/05/2023,AAS0333850,200,N,,N,N
Pendle Borough Council,Financial Services,Supplies and Services,Grant Funding,4737,REDACT - PERSONAL DATA,A0097274,16/05/2023,AAS0333851,200,N,,N,N
Pendle Borough Council,Financial Services,Supplies and Services,Grant Funding,4737,REDACT - PERSONAL DATA,A0097275,16/05/2023,AAS0333852,200,N,,N,N
Pendle Borough Council,Financial Services,Supplies and Services,Grant Funding,4737,REDACT - PERSONAL DATA,A0097276,16/05/2023,AAS0333853,200,N,,N,N
Pendle Borough Council,Financial Services,Supplies and Services,Grant Funding,4737,REDACT - PERSONAL DATA,A0097277,16/05/2023,AAS0333854,200,N,,N,N
Pendle Borough Council,Financial Services,Supplies and Services,Grant Funding,4737,REDACT - PERSONAL DATA,A0097278,16/05/2023,AAS0333855,200,N,,N,N
Pendle Borough Council,Financial Services,Supplies and Services,Grant Funding,4737,REDACT - PERSONAL DATA,A0097279,16/05/2023,AAS0333856,200,N,,N,N
Pendle Borough Council,Financial Services,Supplies and Services,Grant Funding,4737,REDACT - PERSONAL DATA,A0097280,16/05/2023,AAS0333857,200,N,,N,N
Pendle Borough Council,Financial Services,Supplies and Services,Grant Funding,4737,REDACT - PERSONAL DATA,A0097281,16/05/2023,AAS0333858,400,N,,N,N
Pendle Borough Council,Financial Services,Supplies and Services,Grant Funding,4737,REDACT - PERSONAL DATA,A0097282,16/05/2023,AAS0333859,400,N,,N,N
Pendle Borough Council,Engineering & Special Projects,,Fees Income : VATable,9202,REDACT - PERSONAL DATA,A0097283,18/05/2023,HED0333881,70.3,N,,N,N
Pendle Borough Council,Engineering & Special Projects,Premises Related Expense,Grounds : R & M : Day to Day : Routine,2101,NORTH WEST FIRST AID LTD,A0097284,24/05/2023,HED0334042,225,N,,N,N
Pendle Borough Council,Financial Services,Supplies and Services,Grant Funding,4737,REDACT - PERSONAL DATA,A0097286,23/05/2023,AAS0333952,200,N,,N,N
Pendle Borough Council,Financial Services,Supplies and Services,Grant Funding,4737,REDACT - PERSONAL DATA,A0097287,23/05/2023,AAS0333953,200,N,,N,N
Pendle Borough Council,Financial Services,Supplies and Services,Grant Funding,4737,REDACT - PERSONAL DATA,A0097288,23/05/2023,AAS0333954,200,N,,N,N
Pendle Borough Council,Financial Services,Supplies and Services,Grant Funding,4737,REDACT - PERSONAL DATA,A0097289,23/05/2023,AAS0333955,200,N,,N,N
Pendle Borough Council,Financial Services,Supplies and Services,Grant Funding,4737,REDACT - PERSONAL DATA,A0097290,23/05/2023,AAS0333956,200,N,,N,N
Pendle Borough Council,Financial Services,Supplies and Services,Grant Funding,4737,REDACT - PERSONAL DATA,A0097291,23/05/2023,AAS0333957,200,N,,N,N
Pendle Borough Council,Financial Services,Supplies and Services,Grant Funding,4737,REDACT - PERSONAL DATA,A0097292,23/05/2023,AAS0333958,200,N,,N,N
Pendle Borough Council,Financial Services,Supplies and Services,Grant Funding,4737,REDACT - PERSONAL DATA,A0097293,23/05/2023,AAS0333959,200,N,,N,N
Pendle Borough Council,Financial Services,Supplies and Services,Grant Funding,4737,REDACT - PERSONAL DATA,A0097294,23/05/2023,AAS0333960,200,N,,N,N
Pendle Borough Council,Financial Services,Supplies and Services,Grant Funding,4737,REDACT - PERSONAL DATA,A0097295,23/05/2023,AAS0333961,200,N,,N,N
Pendle Borough Council,Financial Services,Supplies and Services,Grant Funding,4737,REDACT - PERSONAL DATA,A0097296,23/05/2023,AAS0333962,200,N,,N,N
Pendle Borough Council,Financial Services,Supplies and Services,Grant Funding,4737,REDACT - PERSONAL DATA,A0097297,23/05/2023,AAS0333963,200,N,,N,N
Pendle Borough Council,Financial Services,Supplies and Services,Grant Funding,4737,REDACT - PERSONAL DATA,A0097298,23/05/2023,AAS0333964,200,N,,N,N
Pendle Borough Council,Financial Services,Supplies and Services,Grant Funding,4737,REDACT - PERSONAL DATA,A0097299,23/05/2023,AAS0333965,200,N,,N,N
Pendle Borough Council,Financial Services,Supplies and Services,Grant Funding,4737,REDACT - PERSONAL DATA,A0097300,23/05/2023,AAS0333966,200,N,,N,N
Pendle Borough Council,Financial Services,Supplies and Services,Grant Funding,4737,REDACT - PERSONAL DATA,A0097301,23/05/2023,AAS0333967,200,N,,N,N
Pendle Borough Council,Financial Services,Supplies and Services,Grant Funding,4737,REDACT - PERSONAL DATA,A0097302,23/05/2023,AAS0333968,200,N,,N,N
Pendle Borough Council,Financial Services,Supplies and Services,Grant Funding,4737,REDACT - PERSONAL DATA,A0097303,23/05/2023,AAS0333969,200,N,,N,N
Pendle Borough Council,Financial Services,Supplies and Services,Grant Funding,4737,REDACT - PERSONAL DATA,A0097304,23/05/2023,AAS0333970,200,N,,N,N
Pendle Borough Council,Financial Services,Supplies and Services,Grant Funding,4737,REDACT - PERSONAL DATA,A0097305,23/05/2023,AAS0333971,200,N,,N,N
Pendle Borough Council,Financial Services,Supplies and Services,Grant Funding,4737,REDACT - PERSONAL DATA,A0097306,23/05/2023,AAS0333972,200,N,,N,N
Pendle Borough Council,Financial Services,Supplies and Services,Grant Funding,4737,REDACT - PERSONAL DATA,A0097307,23/05/2023,AAS0333973,200,N,,N,N
Pendle Borough Council,Financial Services,Supplies and Services,Grant Funding,4737,REDACT - PERSONAL DATA,A0097308,23/05/2023,AAS0333974,200,N,,N,N
Pendle Borough Council,Financial Services,Supplies and Services,Grant Funding,4737,REDACT - PERSONAL DATA,A0097309,23/05/2023,AAS0333975,200,N,,N,N
Pendle Borough Council,Financial Services,Supplies and Services,Grant Funding,4737,REDACT - PERSONAL DATA,A0097310,23/05/2023,AAS0333976,200,N,,N,N
Pendle Borough Council,Financial Services,Supplies and Services,Grant Funding,4737,REDACT - PERSONAL DATA,A0097311,23/05/2023,AAS0333977,200,N,,N,N
Pendle Borough Council,Financial Services,Supplies and Services,Grant Funding,4737,REDACT - PERSONAL DATA,A0097312,23/05/2023,AAS0333978,200,N,,N,N
Pendle Borough Council,Financial Services,Supplies and Services,Grant Funding,4737,REDACT - PERSONAL DATA,A0097313,23/05/2023,AAS0333979,200,N,,N,N
Pendle Borough Council,Financial Services,Supplies and Services,Grant Funding,4737,REDACT - PERSONAL DATA,A0097314,23/05/2023,AAS0333980,200,N,,N,N
Pendle Borough Council,Financial Services,Supplies and Services,Grant Funding,4737,REDACT - PERSONAL DATA,A0097315,23/05/2023,AAS0333981,200,N,,N,N
Pendle Borough Council,Financial Services,Supplies and Services,Grant Funding,4737,REDACT - PERSONAL DATA,A0097316,23/05/2023,AAS0333982,200,N,,N,N
Pendle Borough Council,Financial Services,Supplies and Services,Grant Funding,4737,REDACT - PERSONAL DATA,A0097317,23/05/2023,AAS0333983,200,N,,N,N
Pendle Borough Council,Financial Services,Supplies and Services,Grant Funding,4737,REDACT - PERSONAL DATA,A0097318,23/05/2023,AAS0333984,200,N,,N,N
Pendle Borough Council,Financial Services,Supplies and Services,Grant Funding,4737,REDACT - PERSONAL DATA,A0097319,23/05/2023,AAS0333985,200,N,,N,N
Pendle Borough Council,Financial Services,Transfer Payments,Storage & Homelessness prevention,6104,REDACT - PERSONAL DATA,A0097320,19/05/2023,AAS0334359,355,N,,N,N
Pendle Borough Council,Engineering & Special Projects,Supplies and Services,Members Conference Expenses,4605,PRESIDENT HOTEL,A0097321,24/05/2023,HED0334039,306.67,N,,N,N
Pendle Borough Council,Financial Services,Supplies and Services,Grant Funding,4737,REDACT - PERSONAL DATA,A0097322,23/05/2023,AAS0334048,200,N,,N,N
Pendle Borough Council,Financial Services,Supplies and Services,Grant Funding,4737,REDACT - PERSONAL DATA,A0097323,23/05/2023,AAS0334049,200,N,,N,N
Pendle Borough Council,Financial Services,Supplies and Services,Grant Funding,4737,REDACT - PERSONAL DATA,A0097324,23/05/2023,AAS0334050,200,N,,N,N
Pendle Borough Council,Financial Services,Supplies and Services,Grant Funding,4737,REDACT - PERSONAL DATA,A0097325,23/05/2023,AAS0334051,200,N,,N,N
Pendle Borough Council,Financial Services,Supplies and Services,Grant Funding,4737,REDACT - PERSONAL DATA,A0097326,23/05/2023,AAS0334052,200,N,,N,N
Pendle Borough Council,Financial Services,Supplies and Services,Grant Funding,4737,REDACT - PERSONAL DATA,A0097327,23/05/2023,AAS0334053,200,N,,N,N
Pendle Borough Council,Financial Services,Supplies and Services,Grant Funding,4737,REDACT - PERSONAL DATA,A0097328,23/05/2023,AAS0334054,200,N,,N,N
Pendle Borough Council,Financial Services,Supplies and Services,Grant Funding,4737,REDACT - PERSONAL DATA,A0097329,23/05/2023,AAS0334055,200,N,,N,N
Pendle Borough Council,Financial Services,Supplies and Services,Grant Funding,4737,REDACT - PERSONAL DATA,A0097330,23/05/2023,AAS0334056,200,N,,N,N
Pendle Borough Council,Financial Services,Supplies and Services,Grant Funding,4737,REDACT - PERSONAL DATA,A0097331,23/05/2023,AAS0334057,200,N,,N,N
Pendle Borough Council,Financial Services,Supplies and Services,Grant Funding,4737,REDACT - PERSONAL DATA,A0097332,23/05/2023,AAS0334058,200,N,,N,N
Pendle Borough Council,Financial Services,Supplies and Services,Other Expenses,4705,REDACT - PERSONAL DATA,A0097333,24/05/2023,AAS0334107,102,N,,N,N
Pendle Borough Council,Financial Services,Capital Costs,Capital: Design Fees,CD53,ANDREW HAWTHORNE ARCHITECTS,A0097334,24/05/2023,AAS0334108,10800,N,,N,N
Pendle Borough Council,Financial Services,Supplies and Services,Other Expenses,4705,GJ & MC LETTINGS,A0097353,10/05/2023,AAS0334358,975,N,,N,N
